OrganisationNameLabel,OrganisationURI,EffectiveDate,Directorate/ServiceWhereExpenditureIncurred,ServiceCategoryLabel,ServiceCategoryURI,Supplier,SupplierRegisteredCompany Number,PaymentDate,TransactionNumber,NetAmount,IrrecoverableVAT,PurposeOfSpend,ProcurementClassification:ProclassLabel,ProcrementClassification:ProClassCode
South Lakeland District Council,http://opendatacommunities.org/id/district-council/south-lakeland,28/02/2015,ICT Group,Central Services,http://opendatacommunities.org/def/concept/finance/sercop/objective/102,MERITEC LTD,3224622,42051,45743,8400,0,Emergency Web Support Resource covering,Consultancy,150000
South Lakeland District Council,http://opendatacommunities.org/id/district-council/south-lakeland,28/02/2015,Social Enterprise Admin,Highways & Transport Services,http://opendatacommunities.org/def/concept/finance/sercop/objective/107,PATROL,,42046,46648,860.2,0,Charges for Traffic Penalty Tribunal,Financial Services,200000
South Lakeland District Council,http://opendatacommunities.org/id/district-council/south-lakeland,28/02/2015,Social Enterprise Admin,Central Services,http://opendatacommunities.org/def/concept/finance/sercop/objective/102,CUMBRIA WASTE RECYCLING LTD,3162439,42046,46652,28.28,0,Langstone House 360 ltr Wheelie Bin,Environmental Services,180000
South Lakeland District Council,http://opendatacommunities.org/id/district-council/south-lakeland,28/02/2015,Social Enterprise Admin,Central Services,http://opendatacommunities.org/def/concept/finance/sercop/objective/102,CUMBRIA WASTE RECYCLING LTD,3162439,42044,46660,241.98,0,Wheelie bin and skip emptying South,Environmental Services,180000
South Lakeland District Council,http://opendatacommunities.org/id/district-council/south-lakeland,28/02/2015,Social Enterprise Admin,Central Services,http://opendatacommunities.org/def/concept/finance/sercop/objective/102,CUMBRIA WASTE RECYCLING LTD,3162439,42044,46662,158.12,0,Ulverston Town Hall Queen Street wheelie,Environmental Services,180000
South Lakeland District Council,http://opendatacommunities.org/id/district-council/south-lakeland,28/02/2015,Social Enterprise Admin,Highways & Transport Services,http://opendatacommunities.org/def/concept/finance/sercop/objective/107,CUMBRIA WASTE RECYCLING LTD,3162439,42044,46664,47.27,0,Westmorland Multi Storey 660 ltr Wheelie,Environmental Services,180000
South Lakeland District Council,http://opendatacommunities.org/id/district-council/south-lakeland,28/02/2015,Business Support Community Services,Cultural Environmental Regulatory & Planning Services,http://opendatacommunities.org/def/concept/finance/sercop/objective/104,ARCO LIMITED,133804,42058,46676,199.8,0,Public Protection Equipment - Jacket,Environmental Services,180000
South Lakeland District Council,http://opendatacommunities.org/id/district-council/south-lakeland,28/02/2015,Social Enterprise Admin,Highways & Transport Services,http://opendatacommunities.org/def/concept/finance/sercop/objective/107,HYGIENE CLEANING SUPPLIES LTD,4753934,42046,46729,38.41,0,1 x X4000 Tork Zig Zag Blue 1 Ply,Cleaning & Janitorial,130000
South Lakeland District Council,http://opendatacommunities.org/id/district-council/south-lakeland,28/02/2015,Policy & Partnerships,Central Services,http://opendatacommunities.org/def/concept/finance/sercop/objective/102,GREENGAGE CONSULTING LTD,3272080,42044,46735,200,0,Leadership Insight Programme,Education,170000
South Lakeland District Council,http://opendatacommunities.org/id/district-council/south-lakeland,28/02/2015,Human Resources,Central Services,http://opendatacommunities.org/def/concept/finance/sercop/objective/102,GREENGAGE CONSULTING LTD,3272080,42044,46736,100,0,One day introductory leadership insight,Education,170000
South Lakeland District Council,http://opendatacommunities.org/id/district-council/south-lakeland,28/02/2015,Policy & Partnerships,Cultural Environmental Regulatory & Planning Services,http://opendatacommunities.org/def/concept/finance/sercop/objective/104,GRANTS- MISCELLANEOUS,,42053,46744,750,0,Councillors are,Financial Services,200000
South Lakeland District Council,http://opendatacommunities.org/id/district-council/south-lakeland,28/02/2015,Social Enterprise Admin,Highways & Transport Services,http://opendatacommunities.org/def/concept/finance/sercop/objective/107,ARCO LIMITED,133804,42046,46764,89.64,0,Arco Four Seasons Screenwash 5773105,Furniture & Soft Furnishings,210000
South Lakeland District Council,http://opendatacommunities.org/id/district-council/south-lakeland,28/02/2015,Lake Wardens,Cultural Environmental Regulatory & Planning Services,http://opendatacommunities.org/def/concept/finance/sercop/objective/104,KENTDALE FIRST AID TRAINING,,42044,46774,160,0,2 Day First Aid @ Work Refresher Course,Education,170000
South Lakeland District Council,http://opendatacommunities.org/id/district-council/south-lakeland,28/02/2015,Business Support Community Services,Internal Trading Accounts,,KENDAL SECURITY CENTRE LTD,3179893,42051,46776,72,0,Keys,Vehicle Management,380000
South Lakeland District Council,http://opendatacommunities.org/id/district-council/south-lakeland,28/02/2015,Social Enterprise Admin,Culture and Related Serv,http://opendatacommunities.org/def/concept/finance/sercop/objective/104,PFK Planning,,42044,46779,516.8,0,Professional planning services. RE.,Financial Services,200000
South Lakeland District Council,http://opendatacommunities.org/id/district-council/south-lakeland,28/02/2015,Policy & Partnerships,Cultural Environmental Regulatory & Planning Services,http://opendatacommunities.org/def/concept/finance/sercop/objective/104,The Grange Over Sands 3P's Group,,42053,46806,500,0,"265.00 on 10,000 leaflets 235.00",Financial Services,200000
South Lakeland District Council,http://opendatacommunities.org/id/district-council/south-lakeland,28/02/2015,Policy & Partnerships,Cultural Environmental Regulatory & Planning Services,http://opendatacommunities.org/def/concept/finance/sercop/objective/104,KENDAL TOWN COUNCIL,,42053,46809,10000,0,Funding for Market Place,Financial Services,200000
South Lakeland District Council,http://opendatacommunities.org/id/district-council/south-lakeland,28/02/2015,Policy & Partnerships,Cultural Environmental Regulatory & Planning Services,http://opendatacommunities.org/def/concept/finance/sercop/objective/104,KENDAL TOWN COUNCIL,,42053,46810,300,0,Contribution to clear and plant bulbs,Financial Services,200000
South Lakeland District Council,http://opendatacommunities.org/id/district-council/south-lakeland,28/02/2015,Business Support Community Services,Internal Trading Accounts,,TAYLOR ENGINEERING & FABRICATIONS LTD,4989359,42039,46858,307.65,0,Filters,Vehicle Management,380000
South Lakeland District Council,http://opendatacommunities.org/id/district-council/south-lakeland,28/02/2015,Social Enterprise Admin,Cultural Environmental Regulatory & Planning Services,http://opendatacommunities.org/def/concept/finance/sercop/objective/104,ALLSTAR BUSINESS SOLUTIONS LTD (NCR),2631112,42062,46887,55.43,0,Additional Fuel for Parks vehicle PX63,Utilities,370000
South Lakeland District Council,http://opendatacommunities.org/id/district-council/south-lakeland,28/02/2015,Environment and Housing,Housing,http://opendatacommunities.org/def/concept/finance/sercop/objective/108,ENVIRONMENT & HOUSING GRANTS,,42039,46889,7166.25,0,First and Second Floors at 45,Financial Services,200000
South Lakeland District Council,http://opendatacommunities.org/id/district-council/south-lakeland,28/02/2015,Policy & Partnerships,Cultural Environmental Regulatory & Planning Services,http://opendatacommunities.org/def/concept/finance/sercop/objective/104,PENNINGTON PARISH COUNCIL,,42058,46890,600,0,Pennington Parish Council funding from,Financial Services,200000
South Lakeland District Council,http://opendatacommunities.org/id/district-council/south-lakeland,28/02/2015,Business Support Community Services,Internal Trading Accounts,,THOMAS GRAHAM & SONS (IRON & STEEL) LTD,656879,42044,46892,95.8,0,Regulator,Vehicle Management,380000
South Lakeland District Council,http://opendatacommunities.org/id/district-council/south-lakeland,28/02/2015,Revenues and Benefits,Central Services,http://opendatacommunities.org/def/concept/finance/sercop/objective/102,BADENOCH & CLARK,1356186,42039,46893,480.06,0,Revs and Bens,Consultancy,150000
South Lakeland District Council,http://opendatacommunities.org/id/district-council/south-lakeland,28/02/2015,Business Support Community Services,Housing Services,http://opendatacommunities.org/def/concept/finance/sercop/objective/108,ADECCO UK LIMITED,593232,42044,46894,102.7,0,Cleaner for Town View Fields,Consultancy,150000
South Lakeland District Council,http://opendatacommunities.org/id/district-council/south-lakeland,28/02/2015,Social Enterprise Admin,Central Services,http://opendatacommunities.org/def/concept/finance/sercop/objective/102,ADECCO UK LIMITED,593232,42044,46895,250,0,To supply for period,Consultancy,150000
South Lakeland District Council,http://opendatacommunities.org/id/district-council/south-lakeland,28/02/2015,Coronation Hall,Cultural Environmental Regulatory & Planning Services,http://opendatacommunities.org/def/concept/finance/sercop/objective/104,ULVERSTON AMATEUR OPERATIC SOCIETY,,42039,46896,100,0,Stewards for BBC Young Musician Soloists,Consultancy,150000
South Lakeland District Council,http://opendatacommunities.org/id/district-council/south-lakeland,28/02/2015,Coronation Hall,SLDC as Agent,,MANCHESTER CAMERATA LTD,1128463,42039,46897,9835.29,0,Manchester Camerata Series tickets,Financial Services,200000
South Lakeland District Council,http://opendatacommunities.org/id/district-council/south-lakeland,28/02/2015,Social Enterprise Admin,Highways & Transport Services,http://opendatacommunities.org/def/concept/finance/sercop/objective/107,BEMROSE BOOTH PARAGON LTD,4891375,42039,46898,148,0,1000 PVC permit holders,Stationery,340000
South Lakeland District Council,http://opendatacommunities.org/id/district-council/south-lakeland,28/02/2015,Environmental Protection,Cultural Environmental Regulatory & Planning Services,http://opendatacommunities.org/def/concept/finance/sercop/objective/104,CUMBRIA WASTE RECYCLING LTD,3162439,42058,46899,84.88,0,"Cemeteries Bin Emptying Jan,Feb,March",Environmental Services,180000
South Lakeland District Council,http://opendatacommunities.org/id/district-council/south-lakeland,28/02/2015,Democratic Services,Central Services,http://opendatacommunities.org/def/concept/finance/sercop/objective/102,GATES TRAVEL SERVICE,,42039,46900,100.8,0,Train 27 Jan 2015 - Oxenholme London,Public Transport,360000
South Lakeland District Council,http://opendatacommunities.org/id/district-council/south-lakeland,28/02/2015,Business Support Community Services,Housing Services,http://opendatacommunities.org/def/concept/finance/sercop/objective/108,BUNZL CLEANING & HYGIENE SUPPLIES,2902454,42044,46902,20.25,0,Cutan Hand Sanitiser Dispenser - 061092B,Cleaning & Janitorial,130000
South Lakeland District Council,http://opendatacommunities.org/id/district-council/south-lakeland,28/02/2015,Legal Services,Internal Trading Accounts,,PENNINGTONS (KENDAL) LIMITED,434649,42039,46903,2000,0,Annual Charge from 01 April 2014 to 31,Environmental Services,180000
South Lakeland District Council,http://opendatacommunities.org/id/district-council/south-lakeland,28/02/2015,Human Resources,Central Services,http://opendatacommunities.org/def/concept/finance/sercop/objective/102,GBS Corporate Training,6452080,42039,46904,1990,0,Project Manager 30th January,Education,170000
South Lakeland District Council,http://opendatacommunities.org/id/district-council/south-lakeland,28/02/2015,Human Resources,Central Services,http://opendatacommunities.org/def/concept/finance/sercop/objective/102,GBS Corporate Training,6452080,42039,46905,995,0,Project Manager 30th January,Education,170000
South Lakeland District Council,http://opendatacommunities.org/id/district-council/south-lakeland,28/02/2015,Social Enterprise Admin,Cultural Environmental Regulatory & Planning Services,http://opendatacommunities.org/def/concept/finance/sercop/objective/104,Matchtech,2526418,42044,46906,1068.19,0,TO SUPPLY DEVELOPMENT CONTROL TEAM,Consultancy,150000
South Lakeland District Council,http://opendatacommunities.org/id/district-council/south-lakeland,28/02/2015,Business Support Community Services,Cultural Environmental Regulatory & Planning Services,http://opendatacommunities.org/def/concept/finance/sercop/objective/104,MOGO UK,3091301,42044,46907,920.9,0,Hackney Carriage Set - Printed & Clear,Financial Services,200000
South Lakeland District Council,http://opendatacommunities.org/id/district-council/south-lakeland,28/02/2015,Business Support Community Services,Housing Services,http://opendatacommunities.org/def/concept/finance/sercop/objective/108,NEWSQUEST (NORTH WEST) LTD,3102566,42044,46908,208.8,0,Advertisement in Westmorland Gazette for,Social Community Care Supplies & Services,410000
South Lakeland District Council,http://opendatacommunities.org/id/district-council/south-lakeland,28/02/2015,ICT Group,Central Services,http://opendatacommunities.org/def/concept/finance/sercop/objective/102,Insight Direct (Uk) Ltd,2579852,42039,46909,5489,0,0003609247   B50-70 INTEL CORE,Information Communication Technology,270000
South Lakeland District Council,http://opendatacommunities.org/id/district-council/south-lakeland,28/02/2015,Business Support Community Services,Internal Trading Accounts,,ARCO LIMITED,133804,42044,46910,7.18,0,Polish,Clothing,140000
South Lakeland District Council,http://opendatacommunities.org/id/district-council/south-lakeland,28/02/2015,Business Support Community Services,Internal Trading Accounts,,ARCO LIMITED,133804,42044,46911,7.18,0,Polish,Clothing,140000
South Lakeland District Council,http://opendatacommunities.org/id/district-council/south-lakeland,28/02/2015,Legal Services,Central Services,http://opendatacommunities.org/def/concept/finance/sercop/objective/102,VENN GROUP RECRUITMENT SOLUTIONS,,42039,46913,464.06,0,Wages from w/k ending,Consultancy,150000
South Lakeland District Council,http://opendatacommunities.org/id/district-council/south-lakeland,28/02/2015,Business Support Community Services,Internal Trading Accounts,,BRIAN ARMISTEAD LTD T/A SINKFALL RECYCLI,4133280,42039,46914,698.8,0,Green waste tipping - April (estimated),Environmental Services,180000
South Lakeland District Council,http://opendatacommunities.org/id/district-council/south-lakeland,28/02/2015,Business Support Community Services,Internal Trading Accounts,,ARCO LIMITED,133804,42039,46915,11.64,0,Eez wipes,Furniture & Soft Furnishings,210000
South Lakeland District Council,http://opendatacommunities.org/id/district-council/south-lakeland,28/02/2015,Democratic Services,Central Services,http://opendatacommunities.org/def/concept/finance/sercop/objective/102,Successful Speeches,,42039,46916,720,0,Chair training to be held on 22 January,Education,170000
South Lakeland District Council,http://opendatacommunities.org/id/district-council/south-lakeland,28/02/2015,Social Enterprise Admin,Highways & Transport Services,http://opendatacommunities.org/def/concept/finance/sercop/objective/107,Masterstaff Limited,2777593,42039,46917,262.8,0,Cover for cleaner in Westmorland SC car,Cleaning & Janitorial,130000
South Lakeland District Council,http://opendatacommunities.org/id/district-council/south-lakeland,28/02/2015,Social Enterprise Admin,Highways & Transport Services,http://opendatacommunities.org/def/concept/finance/sercop/objective/107,Masterstaff Limited,2777593,42039,46918,76.65,0,Cover for cleaner in Westmorland SC car,Cleaning & Janitorial,130000
South Lakeland District Council,http://opendatacommunities.org/id/district-council/south-lakeland,28/02/2015,Social Enterprise Admin,Highways & Transport Services,http://opendatacommunities.org/def/concept/finance/sercop/objective/107,CONTINENTAL LANDSCAPES LTD,2108452,42044,46919,11.89,0,Grounds maintenance 14-15,Horticultural,240000
South Lakeland District Council,http://opendatacommunities.org/id/district-council/south-lakeland,28/02/2015,Social Enterprise Admin,Highways & Transport Services,http://opendatacommunities.org/def/concept/finance/sercop/objective/107,CONTINENTAL LANDSCAPES LTD,2108452,42044,46919,11.89,0,Grounds maintenance 14-15,Horticultural,240000
South Lakeland District Council,http://opendatacommunities.org/id/district-council/south-lakeland,28/02/2015,Social Enterprise Admin,Highways & Transport Services,http://opendatacommunities.org/def/concept/finance/sercop/objective/107,CONTINENTAL LANDSCAPES LTD,2108452,42044,46919,1.19,0,Grounds maintenance 14-15,Horticultural,240000
South Lakeland District Council,http://opendatacommunities.org/id/district-council/south-lakeland,28/02/2015,Social Enterprise Admin,Highways & Transport Services,http://opendatacommunities.org/def/concept/finance/sercop/objective/107,CONTINENTAL LANDSCAPES LTD,2108452,42044,46919,11.89,0,Grounds maintenance 14-15,Horticultural,240000
South Lakeland District Council,http://opendatacommunities.org/id/district-council/south-lakeland,28/02/2015,Social Enterprise Admin,Highways & Transport Services,http://opendatacommunities.org/def/concept/finance/sercop/objective/107,CONTINENTAL LANDSCAPES LTD,2108452,42044,46919,11.89,0,Grounds maintenance 14-15,Horticultural,240000
South Lakeland District Council,http://opendatacommunities.org/id/district-council/south-lakeland,28/02/2015,Social Enterprise Admin,Highways & Transport Services,http://opendatacommunities.org/def/concept/finance/sercop/objective/107,CONTINENTAL LANDSCAPES LTD,2108452,42044,46919,11.89,0,Grounds maintenance 14-15,Horticultural,240000
South Lakeland District Council,http://opendatacommunities.org/id/district-council/south-lakeland,28/02/2015,Social Enterprise Admin,Highways & Transport Services,http://opendatacommunities.org/def/concept/finance/sercop/objective/107,CONTINENTAL LANDSCAPES LTD,2108452,42044,46919,35.67,0,Grounds maintenance 14-15,Horticultural,240000
South Lakeland District Council,http://opendatacommunities.org/id/district-council/south-lakeland,28/02/2015,Social Enterprise Admin,Highways & Transport Services,http://opendatacommunities.org/def/concept/finance/sercop/objective/107,CONTINENTAL LANDSCAPES LTD,2108452,42044,46919,237.8,0,Grounds maintenance 14-15,Horticultural,240000
South Lakeland District Council,http://opendatacommunities.org/id/district-council/south-lakeland,28/02/2015,Social Enterprise Admin,Highways & Transport Services,http://opendatacommunities.org/def/concept/finance/sercop/objective/107,CONTINENTAL LANDSCAPES LTD,2108452,42044,46919,148.62,0,Grounds maintenance 14-15,Horticultural,240000
South Lakeland District Council,http://opendatacommunities.org/id/district-council/south-lakeland,28/02/2015,Social Enterprise Admin,Highways & Transport Services,http://opendatacommunities.org/def/concept/finance/sercop/objective/107,CONTINENTAL LANDSCAPES LTD,2108452,42044,46919,5.94,0,Grounds maintenance 14-15,Horticultural,240000
South Lakeland District Council,http://opendatacommunities.org/id/district-council/south-lakeland,28/02/2015,Social Enterprise Admin,Highways & Transport Services,http://opendatacommunities.org/def/concept/finance/sercop/objective/107,CONTINENTAL LANDSCAPES LTD,2108452,42044,46919,59.45,0,Grounds maintenance 14-15,Horticultural,240000
South Lakeland District Council,http://opendatacommunities.org/id/district-council/south-lakeland,28/02/2015,Social Enterprise Admin,Highways & Transport Services,http://opendatacommunities.org/def/concept/finance/sercop/objective/107,CONTINENTAL LANDSCAPES LTD,2108452,42044,46919,59.45,0,Grounds maintenance 14-15,Horticultural,240000
South Lakeland District Council,http://opendatacommunities.org/id/district-council/south-lakeland,28/02/2015,Social Enterprise Admin,Highways & Transport Services,http://opendatacommunities.org/def/concept/finance/sercop/objective/107,CONTINENTAL LANDSCAPES LTD,2108452,42044,46919,118.9,0,Grounds maintenance 14-15,Horticultural,240000
South Lakeland District Council,http://opendatacommunities.org/id/district-council/south-lakeland,28/02/2015,Social Enterprise Admin,Highways & Transport Services,http://opendatacommunities.org/def/concept/finance/sercop/objective/107,CONTINENTAL LANDSCAPES LTD,2108452,42044,46919,47.56,0,Grounds maintenance 14-15,Horticultural,240000
South Lakeland District Council,http://opendatacommunities.org/id/district-council/south-lakeland,28/02/2015,Social Enterprise Admin,Highways & Transport Services,http://opendatacommunities.org/def/concept/finance/sercop/objective/107,CONTINENTAL LANDSCAPES LTD,2108452,42044,46919,5.94,0,Grounds maintenance 14-15,Horticultural,240000
South Lakeland District Council,http://opendatacommunities.org/id/district-council/south-lakeland,28/02/2015,Social Enterprise Admin,Highways & Transport Services,http://opendatacommunities.org/def/concept/finance/sercop/objective/107,CONTINENTAL LANDSCAPES LTD,2108452,42044,46919,5.94,0,Grounds maintenance 14-15,Horticultural,240000
South Lakeland District Council,http://opendatacommunities.org/id/district-council/south-lakeland,28/02/2015,Social Enterprise Admin,Highways & Transport Services,http://opendatacommunities.org/def/concept/finance/sercop/objective/107,CONTINENTAL LANDSCAPES LTD,2108452,42044,46919,2.97,0,Grounds maintenance 14-15,Horticultural,240000
South Lakeland District Council,http://opendatacommunities.org/id/district-council/south-lakeland,28/02/2015,Social Enterprise Admin,Highways & Transport Services,http://opendatacommunities.org/def/concept/finance/sercop/objective/107,CONTINENTAL LANDSCAPES LTD,2108452,42044,46919,59.45,0,Grounds maintenance 14-15,Horticultural,240000
South Lakeland District Council,http://opendatacommunities.org/id/district-council/south-lakeland,28/02/2015,Social Enterprise Admin,Highways & Transport Services,http://opendatacommunities.org/def/concept/finance/sercop/objective/107,CONTINENTAL LANDSCAPES LTD,2108452,42044,46919,53.5,0,Grounds maintenance 14-15,Horticultural,240000
South Lakeland District Council,http://opendatacommunities.org/id/district-council/south-lakeland,28/02/2015,Social Enterprise Admin,Highways & Transport Services,http://opendatacommunities.org/def/concept/finance/sercop/objective/107,CONTINENTAL LANDSCAPES LTD,2108452,42044,46919,65.39,0,Grounds maintenance 14-15,Horticultural,240000
South Lakeland District Council,http://opendatacommunities.org/id/district-council/south-lakeland,28/02/2015,Social Enterprise Admin,Highways & Transport Services,http://opendatacommunities.org/def/concept/finance/sercop/objective/107,CONTINENTAL LANDSCAPES LTD,2108452,42044,46919,124.84,0,Grounds maintenance 14-15,Horticultural,240000
South Lakeland District Council,http://opendatacommunities.org/id/district-council/south-lakeland,28/02/2015,Social Enterprise Admin,Highways & Transport Services,http://opendatacommunities.org/def/concept/finance/sercop/objective/107,CONTINENTAL LANDSCAPES LTD,2108452,42044,46919,118.9,0,Grounds maintenance 14-15,Horticultural,240000
South Lakeland District Council,http://opendatacommunities.org/id/district-council/south-lakeland,28/02/2015,Social Enterprise Admin,Highways & Transport Services,http://opendatacommunities.org/def/concept/finance/sercop/objective/107,CONTINENTAL LANDSCAPES LTD,2108452,42044,46919,11.89,0,Grounds maintenance 14-15,Horticultural,240000
South Lakeland District Council,http://opendatacommunities.org/id/district-council/south-lakeland,28/02/2015,Social Enterprise Admin,Highways & Transport Services,http://opendatacommunities.org/def/concept/finance/sercop/objective/107,CONTINENTAL LANDSCAPES LTD,2108452,42044,46919,11.89,0,Grounds maintenance 14-15,Horticultural,240000
South Lakeland District Council,http://opendatacommunities.org/id/district-council/south-lakeland,28/02/2015,Social Enterprise Admin,Highways & Transport Services,http://opendatacommunities.org/def/concept/finance/sercop/objective/107,CONTINENTAL LANDSCAPES LTD,2108452,42044,46919,35.67,0,Grounds maintenance 14-15,Horticultural,240000
South Lakeland District Council,http://opendatacommunities.org/id/district-council/south-lakeland,28/02/2015,Social Enterprise Admin,Highways & Transport Services,http://opendatacommunities.org/def/concept/finance/sercop/objective/107,CONTINENTAL LANDSCAPES LTD,2108452,42044,46919,59.45,0,Grounds maintenance 14-15,Horticultural,240000
South Lakeland District Council,http://opendatacommunities.org/id/district-council/south-lakeland,28/02/2015,Social Enterprise Admin,Highways & Transport Services,http://opendatacommunities.org/def/concept/finance/sercop/objective/107,CONTINENTAL LANDSCAPES LTD,2108452,42044,46919,105.76,0,Grounds maintenance 14-15,Horticultural,240000
South Lakeland District Council,http://opendatacommunities.org/id/district-council/south-lakeland,28/02/2015,Social Enterprise Admin,Highways & Transport Services,http://opendatacommunities.org/def/concept/finance/sercop/objective/107,CONTINENTAL LANDSCAPES LTD,2108452,42044,46919,118.9,0,Grounds maintenance 14-15,Horticultural,240000
South Lakeland District Council,http://opendatacommunities.org/id/district-council/south-lakeland,28/02/2015,Social Enterprise Admin,Highways & Transport Services,http://opendatacommunities.org/def/concept/finance/sercop/objective/107,CONTINENTAL LANDSCAPES LTD,2108452,42044,46919,219.96,0,Grounds maintenance 14-15,Horticultural,240000
South Lakeland District Council,http://opendatacommunities.org/id/district-council/south-lakeland,28/02/2015,Social Enterprise Admin,Highways & Transport Services,http://opendatacommunities.org/def/concept/finance/sercop/objective/107,CONTINENTAL LANDSCAPES LTD,2108452,42044,46919,118.9,0,Grounds maintenance 14-15,Horticultural,240000
South Lakeland District Council,http://opendatacommunities.org/id/district-council/south-lakeland,28/02/2015,Social Enterprise Admin,Highways & Transport Services,http://opendatacommunities.org/def/concept/finance/sercop/objective/107,CONTINENTAL LANDSCAPES LTD,2108452,42044,46919,178.35,0,Grounds maintenance 14-15,Horticultural,240000
South Lakeland District Council,http://opendatacommunities.org/id/district-council/south-lakeland,28/02/2015,Social Enterprise Admin,Cultural Environmental Regulatory & Planning Services,http://opendatacommunities.org/def/concept/finance/sercop/objective/104,CONTINENTAL LANDSCAPES LTD,2108452,42044,46919,9511.8,0,Grounds maintenance 14-15,Horticultural,240000
South Lakeland District Council,http://opendatacommunities.org/id/district-council/south-lakeland,28/02/2015,Social Enterprise Admin,Cultural Environmental Regulatory & Planning Services,http://opendatacommunities.org/def/concept/finance/sercop/objective/104,CONTINENTAL LANDSCAPES LTD,2108452,42044,46919,1376.57,0,Grounds maintenance 14-15,Cemetery & Crematorium,120000
South Lakeland District Council,http://opendatacommunities.org/id/district-council/south-lakeland,28/02/2015,Social Enterprise Admin,Cultural Environmental Regulatory & Planning Services,http://opendatacommunities.org/def/concept/finance/sercop/objective/104,CONTINENTAL LANDSCAPES LTD,2108452,42044,46919,23.78,0,Grounds maintenance 14-15,Horticultural,240000
South Lakeland District Council,http://opendatacommunities.org/id/district-council/south-lakeland,28/02/2015,Social Enterprise Admin,Cultural Environmental Regulatory & Planning Services,http://opendatacommunities.org/def/concept/finance/sercop/objective/104,CONTINENTAL LANDSCAPES LTD,2108452,42044,46919,45478.33,0,Grounds maintenance 14-15,Horticultural,240000
South Lakeland District Council,http://opendatacommunities.org/id/district-council/south-lakeland,28/02/2015,Social Enterprise Admin,Cultural Environmental Regulatory & Planning Services,http://opendatacommunities.org/def/concept/finance/sercop/objective/104,CONTINENTAL LANDSCAPES LTD,2108452,42044,46919,2259.05,0,Grounds maintenance 14-15,Horticultural,240000
South Lakeland District Council,http://opendatacommunities.org/id/district-council/south-lakeland,28/02/2015,Social Enterprise Admin,External Trading Accounts,,CONTINENTAL LANDSCAPES LTD,2108452,42044,46919,104.04,0,Grounds maintenance 14-15,Horticultural,240000
South Lakeland District Council,http://opendatacommunities.org/id/district-council/south-lakeland,28/02/2015,Environmental Protection,Cultural Environmental Regulatory & Planning Services,http://opendatacommunities.org/def/concept/finance/sercop/objective/104,CONTINENTAL LANDSCAPES LTD,2108452,42039,46920,3582.38,0,Covering 12monthly payments for,Cemetery & Crematorium,120000
South Lakeland District Council,http://opendatacommunities.org/id/district-council/south-lakeland,28/02/2015,Financial Services,Central Services,http://opendatacommunities.org/def/concept/finance/sercop/objective/102,CUMBRIA LGPS,,42039,46921,74455.93,0,Qtr contribution re past pensions,Financial Services,200000
South Lakeland District Council,http://opendatacommunities.org/id/district-council/south-lakeland,28/02/2015,Technical Team,Cultural Environmental Regulatory & Planning Services,http://opendatacommunities.org/def/concept/finance/sercop/objective/104,Matchtech,2526418,42044,46922,781.2,0,TO SUPPLY  CONTRACT 16,Consultancy,150000
South Lakeland District Council,http://opendatacommunities.org/id/district-council/south-lakeland,28/02/2015,Technical Team,Cultural Environmental Regulatory & Planning Services,http://opendatacommunities.org/def/concept/finance/sercop/objective/104,Matchtech,2526418,42044,46923,781.2,0,TO SUPPLY  CONTRACT 16,Consultancy,150000
South Lakeland District Council,http://opendatacommunities.org/id/district-council/south-lakeland,28/02/2015,Printing Section,Central Services,http://opendatacommunities.org/def/concept/finance/sercop/objective/102,DIXON PRINTING CO LTD,,42039,46924,2000,0,"110,000 A4 100gsm letterheads printed 2",Stationery,340000
South Lakeland District Council,http://opendatacommunities.org/id/district-council/south-lakeland,28/02/2015,Coronation Hall,External Trading Accounts,,Morson International,,42044,46927,119.28,0,Ulverston Market Hall cleaner from April,Consultancy,150000
South Lakeland District Council,http://opendatacommunities.org/id/district-council/south-lakeland,28/02/2015,Social Enterprise Admin,Highways & Transport Services,http://opendatacommunities.org/def/concept/finance/sercop/objective/107,ALLSTAR BUSINESS SOLUTIONS LTD (NCR),2631112,42062,46929,277.55,0,Fuel for car parks' vehicles starting 1,Utilities,370000
South Lakeland District Council,http://opendatacommunities.org/id/district-council/south-lakeland,28/02/2015,Social Enterprise Admin,Cultural Environmental Regulatory & Planning Services,http://opendatacommunities.org/def/concept/finance/sercop/objective/104,ALLSTAR BUSINESS SOLUTIONS LTD (NCR),2631112,42062,46929,184.12,0,Fuel for car parks' vehicles starting 1,Utilities,370000
South Lakeland District Council,http://opendatacommunities.org/id/district-council/south-lakeland,28/02/2015,Printing Section,Central Services,http://opendatacommunities.org/def/concept/finance/sercop/objective/102,TOSHIBA TEC UK IMAGING SYSTEMS LTD,4124726,42060,46930,3543.98,0,Click charges for Print Room until end,Stationery,340000
South Lakeland District Council,http://opendatacommunities.org/id/district-council/south-lakeland,28/02/2015,Business Support Community Services,Cultural Environmental Regulatory & Planning Services,http://opendatacommunities.org/def/concept/finance/sercop/objective/104,Floodsafe Projects Ltd,8418342,42039,46931,4116.65,0,Flood protection measures as per quote,Arts & Leisure Services,290000
South Lakeland District Council,http://opendatacommunities.org/id/district-council/south-lakeland,28/02/2015,Business Support Community Services,Central Services,http://opendatacommunities.org/def/concept/finance/sercop/objective/102,FLORENCE MADDEN,,42039,46932,1000,0,NLP Business Practitioner Course Feb,Education,170000
South Lakeland District Council,http://opendatacommunities.org/id/district-council/south-lakeland,28/02/2015,Social Enterprise Admin,Cultural Environmental Regulatory & Planning Services,http://opendatacommunities.org/def/concept/finance/sercop/objective/104,ALLSTAR BUSINESS SOLUTIONS LTD (NCR),2631112,42062,46937,50.01,0,Additional Fuel for Parks vehicle PX63,Utilities,370000
South Lakeland District Council,http://opendatacommunities.org/id/district-council/south-lakeland,28/02/2015,Financial Services,Central Services,http://opendatacommunities.org/def/concept/finance/sercop/objective/102,CIPFA,2376684,42039,46938,45,0,CIPFA Treasury Management,Education,170000
South Lakeland District Council,http://opendatacommunities.org/id/district-council/south-lakeland,28/02/2015,Human Resources,Central Services,http://opendatacommunities.org/def/concept/finance/sercop/objective/102,MIDLAND SOFTWARE LTD,1852206,42051,46941,492.53,0,3* BOE Professional Bundle,Information Communication Technology,270000
South Lakeland District Council,http://opendatacommunities.org/id/district-council/south-lakeland,28/02/2015,Business Support Community Services,Internal Trading Accounts,,BRIAN ARMISTEAD LTD T/A SINKFALL RECYCLI,4133280,42044,46942,822.4,0,Green waste tipping - April (estimated),Environmental Services,180000
South Lakeland District Council,http://opendatacommunities.org/id/district-council/south-lakeland,28/02/2015,Social Enterprise Admin,Cultural Environmental Regulatory & Planning Services,http://opendatacommunities.org/def/concept/finance/sercop/objective/104,B & J METALS (SKIP HIRE) LTD,4634318,42044,46943,3050,0,Grounds waste disposal- Sandylands Road,Environmental Services,180000
South Lakeland District Council,http://opendatacommunities.org/id/district-council/south-lakeland,28/02/2015,Human Resources,Non-Service Payments,,CYCLESCHEME LTD,5363678,42039,46944,640.83,0,Cycle scheme,Financial Services,200000
South Lakeland District Council,http://opendatacommunities.org/id/district-council/south-lakeland,28/02/2015,Human Resources,Central Services,http://opendatacommunities.org/def/concept/finance/sercop/objective/102,CHARTERED INST OF ENVIRONMNTL HLTH,,42053,46948,850,0,Advertisement for Public Protection,Human Resources,260000
South Lakeland District Council,http://opendatacommunities.org/id/district-council/south-lakeland,28/02/2015,Development Strategy,Housing Services,http://opendatacommunities.org/def/concept/finance/sercop/objective/108,MORGAN HUNT UK LIMITED,4349535,42044,46950,765.17,0,Housing Advice Manager,Consultancy,150000
South Lakeland District Council,http://opendatacommunities.org/id/district-council/south-lakeland,28/02/2015,Development Strategy,Housing Services,http://opendatacommunities.org/def/concept/finance/sercop/objective/108,MORGAN HUNT UK LIMITED,4349535,42044,46950,765.15,0,Housing Advice Manager,Consultancy,150000
South Lakeland District Council,http://opendatacommunities.org/id/district-council/south-lakeland,28/02/2015,Development Management,Cultural Environmental Regulatory & Planning Services,http://opendatacommunities.org/def/concept/finance/sercop/objective/104,CARLISLE CITY COUNCIL,,42044,46951,210,0,Fire Safety Seminar - 5 February 2015,Education,170000
South Lakeland District Council,http://opendatacommunities.org/id/district-council/south-lakeland,28/02/2015,Revenues and Benefits,Central Services,http://opendatacommunities.org/def/concept/finance/sercop/objective/102,CIVICA UK LTD,1628868,42044,46952,5225,0,NNDR 1 Form and Transitional Relief 2015,Information Communication Technology,270000
South Lakeland District Council,http://opendatacommunities.org/id/district-council/south-lakeland,28/02/2015,Business Support Community Services,Internal Trading Accounts,,RIBBLESDALE AUTO ELECTRICS 1992 LTD,2732686,42044,46953,87.6,0,Lens,Vehicle Management,380000
South Lakeland District Council,http://opendatacommunities.org/id/district-council/south-lakeland,28/02/2015,Business Support Community Services,Internal Trading Accounts,,ALLSTAR BUSINESS SOLUTIONS LTD (NCR),2631112,42062,46954,3262.14,0,Fuel to 15/01,Utilities,370000
South Lakeland District Council,http://opendatacommunities.org/id/district-council/south-lakeland,28/02/2015,Business Support Community Services,Internal Trading Accounts,,ALLSTAR BUSINESS SOLUTIONS LTD (NCR),2631112,42062,46954,75.13,0,Fuel to 15/01,Utilities,370000
South Lakeland District Council,http://opendatacommunities.org/id/district-council/south-lakeland,28/02/2015,Business Support Community Services,Internal Trading Accounts,,ALLSTAR BUSINESS SOLUTIONS LTD (NCR),2631112,42062,46954,13331.39,0,Fuel to 15/01,Utilities,370000
South Lakeland District Council,http://opendatacommunities.org/id/district-council/south-lakeland,28/02/2015,Social Enterprise Admin,Transport,http://opendatacommunities.org/def/concept/finance/sercop/objective/107,Inception Design,7951237,42044,46955,105,0,Sign design works across district,Vehicle Management,380000
South Lakeland District Council,http://opendatacommunities.org/id/district-council/south-lakeland,28/02/2015,Business Support Community Services,Cultural Environmental Regulatory & Planning Services,http://opendatacommunities.org/def/concept/finance/sercop/objective/104,ARCO LIMITED,133804,42044,46956,14.9,0,Polish,Furniture & Soft Furnishings,210000
South Lakeland District Council,http://opendatacommunities.org/id/district-council/south-lakeland,28/02/2015,Business Support Community Services,Internal Trading Accounts,,ARCO LIMITED,133804,42044,46956,2.35,0,Polish,Furniture & Soft Furnishings,210000
South Lakeland District Council,http://opendatacommunities.org/id/district-council/south-lakeland,28/02/2015,Business Support Community Services,Internal Trading Accounts,,ARCO LIMITED,133804,42044,46956,4.68,0,Polish,Cleaning & Janitorial,130000
South Lakeland District Council,http://opendatacommunities.org/id/district-council/south-lakeland,28/02/2015,Business Support Community Services,Internal Trading Accounts,,ARCO LIMITED,133804,42044,46956,465.64,0,Polish,Clothing,140000
South Lakeland District Council,http://opendatacommunities.org/id/district-council/south-lakeland,28/02/2015,Business Support Community Services,Internal Trading Accounts,,AINSWORTH'S GARAGE,,42044,46957,25.5,0,Brake test,Vehicle Management,380000
South Lakeland District Council,http://opendatacommunities.org/id/district-council/south-lakeland,28/02/2015,Business Support Community Services,Internal Trading Accounts,,M G D LTD,,42044,46958,35,0,MOTs 01/04/14 - 31/03/15,Vehicle Management,380000
South Lakeland District Council,http://opendatacommunities.org/id/district-council/south-lakeland,28/02/2015,Business Support Community Services,Internal Trading Accounts,,HAKO MACHINES LIMITED,1414225,42044,46959,5043.99,0,Hire of KP63 WXW 01/02/15 - 30/04/15,Vehicle Management,380000
South Lakeland District Council,http://opendatacommunities.org/id/district-council/south-lakeland,28/02/2015,Business Support Community Services,Internal Trading Accounts,,STAGECOACH NORTHWEST,,42044,46960,40,0,Steam cleaning 01/04/14 - 31/03/15,Vehicle Management,380000
South Lakeland District Council,http://opendatacommunities.org/id/district-council/south-lakeland,28/02/2015,Business Support Community Services,Internal Trading Accounts,,STAGECOACH NORTHWEST,,42044,46961,175,0,Steam cleaning 01/04/14 - 31/03/15,Vehicle Management,380000
South Lakeland District Council,http://opendatacommunities.org/id/district-council/south-lakeland,28/02/2015,Business Support Community Services,Cultural Environmental Regulatory & Planning Services,http://opendatacommunities.org/def/concept/finance/sercop/objective/104,CUMBRIA WASTE RECYCLING LTD,3162439,42044,46962,12850.63,0,Empty recycling banks in April,Environmental Services,180000
South Lakeland District Council,http://opendatacommunities.org/id/district-council/south-lakeland,28/02/2015,Business Support Community Services,Internal Trading Accounts,,PYE MOTORS LIMITED,204727,42044,46963,75.88,0,Light,Vehicle Management,380000
South Lakeland District Council,http://opendatacommunities.org/id/district-council/south-lakeland,28/02/2015,Business Support Community Services,Internal Trading Accounts,,J R RICHARDSON LTD,2225792,42044,46964,176.42,0,Top wash (26330),Cleaning & Janitorial,130000
South Lakeland District Council,http://opendatacommunities.org/id/district-council/south-lakeland,28/02/2015,Business Support Community Services,Cultural Environmental Regulatory & Planning Services,http://opendatacommunities.org/def/concept/finance/sercop/objective/104,CUMBRIA WASTE RECYCLING LTD,3162439,42044,46965,12850.63,0,Empty recycling banks in April,Environmental Services,180000
South Lakeland District Council,http://opendatacommunities.org/id/district-council/south-lakeland,28/02/2015,Business Support Community Services,Internal Trading Accounts,,LANCASTER TRAINING SERVICES LTD,1447612,42044,46966,92.5,0,FLT Operator training,Education,170000
South Lakeland District Council,http://opendatacommunities.org/id/district-council/south-lakeland,28/02/2015,Business Support Community Services,Internal Trading Accounts,,LANCASTER TRAINING SERVICES LTD,1447612,42044,46966,370,0,FLT Operator training,Education,170000
South Lakeland District Council,http://opendatacommunities.org/id/district-council/south-lakeland,28/02/2015,Business Support Community Services,Internal Trading Accounts,,LANCASTER TRAINING SERVICES LTD,1447612,42044,46967,239.17,0,FLT Operator training,Education,170000
South Lakeland District Council,http://opendatacommunities.org/id/district-council/south-lakeland,28/02/2015,Business Support Community Services,Internal Trading Accounts,,LANCASTER TRAINING SERVICES LTD,1447612,42044,46968,86.73,0,FLT Operator training,Education,170000
South Lakeland District Council,http://opendatacommunities.org/id/district-council/south-lakeland,28/02/2015,Business Support Community Services,Internal Trading Accounts,,LANCASTER TRAINING SERVICES LTD,1447612,42044,46968,477.02,0,FLT Operator training,Education,170000
South Lakeland District Council,http://opendatacommunities.org/id/district-council/south-lakeland,28/02/2015,Business Support Community Services,Cultural Environmental Regulatory & Planning Services,http://opendatacommunities.org/def/concept/finance/sercop/objective/104,OCS GROUP LTD T/A CANNON HYGIENE LTD,1298292,42044,46969,2241.65,0,Clinical waste collections - January,Environmental Services,180000
South Lakeland District Council,http://opendatacommunities.org/id/district-council/south-lakeland,28/02/2015,Business Support Community Services,Internal Trading Accounts,,ALLSTAR BUSINESS SOLUTIONS LTD (NCR),2631112,42062,46970,4094.28,0,Fuel to 31/01,Utilities,370000
South Lakeland District Council,http://opendatacommunities.org/id/district-council/south-lakeland,28/02/2015,Business Support Community Services,Internal Trading Accounts,,ALLSTAR BUSINESS SOLUTIONS LTD (NCR),2631112,42062,46970,375.5,0,Fuel to 31/01,Utilities,370000
South Lakeland District Council,http://opendatacommunities.org/id/district-council/south-lakeland,28/02/2015,Business Support Community Services,Internal Trading Accounts,,ALLSTAR BUSINESS SOLUTIONS LTD (NCR),2631112,42062,46970,12736.61,0,Fuel to 31/01,Utilities,370000
South Lakeland District Council,http://opendatacommunities.org/id/district-council/south-lakeland,28/02/2015,Business Support Community Services,Internal Trading Accounts,,PIER 1 METALWORKS LTD,4291520,42044,46971,120,0,Repair stillage,Vehicle Management,380000
South Lakeland District Council,http://opendatacommunities.org/id/district-council/south-lakeland,28/02/2015,Business Support Community Services,Internal Trading Accounts,,INNOVATIVE SAFETY SYSTEMS LTD,6875015,42044,46972,352.58,0,LEDs,Vehicle Management,380000
South Lakeland District Council,http://opendatacommunities.org/id/district-council/south-lakeland,28/02/2015,Business Support Community Services,Internal Trading Accounts,,HYDRAIR TRUCK & TRAILER PARTS LTD,,42044,46973,50.64,0,Bushes,Vehicle Management,380000
South Lakeland District Council,http://opendatacommunities.org/id/district-council/south-lakeland,28/02/2015,Business Support Community Services,Internal Trading Accounts,,Harry Park Tyres Ltd,8131208,42044,46974,105,0,Tyres,Vehicle Management,380000
South Lakeland District Council,http://opendatacommunities.org/id/district-council/south-lakeland,28/02/2015,Business Support Community Services,Internal Trading Accounts,,HYDRAIR TRUCK & TRAILER PARTS LTD,,42044,46975,177.05,0,Bushes,Vehicle Management,380000
South Lakeland District Council,http://opendatacommunities.org/id/district-council/south-lakeland,28/02/2015,Business Support Community Services,Internal Trading Accounts,,CUMBRIA TRUCK CENTRE LTD,4298488,42044,46976,669.05,0,Leaf,Vehicle Management,380000
South Lakeland District Council,http://opendatacommunities.org/id/district-council/south-lakeland,28/02/2015,Business Support Community Services,Environment Regulatory,,Great Green Systems Ltd,6632263,42044,46977,651.2,0,Replaces order 24352.,Vehicle Management,380000
South Lakeland District Council,http://opendatacommunities.org/id/district-council/south-lakeland,28/02/2015,Development Implementation,Central Services,http://opendatacommunities.org/def/concept/finance/sercop/objective/102,ACES,,42044,46979,150,0,Annual ACES Subscripton ,Financial Services,200000
South Lakeland District Council,http://opendatacommunities.org/id/district-council/south-lakeland,28/02/2015,Development Implementation,Cultural Environmental Regulatory & Planning Services,http://opendatacommunities.org/def/concept/finance/sercop/objective/104,Association of Town & City Management,,42044,46980,495,0,Membership for 2015,Environmental Services,180000
South Lakeland District Council,http://opendatacommunities.org/id/district-council/south-lakeland,28/02/2015,Electoral Services,Central Services,http://opendatacommunities.org/def/concept/finance/sercop/objective/102,ROYAL MAIL GROUP PLC,,42044,46981,151.23,0,IER reply postage,Mail Services,300000
South Lakeland District Council,http://opendatacommunities.org/id/district-council/south-lakeland,28/02/2015,Electoral Services,Central Services,http://opendatacommunities.org/def/concept/finance/sercop/objective/102,SHAW & SONS LTD,176653,42044,46982,1886,0,Presiding Officer Packs,Stationery,340000
South Lakeland District Council,http://opendatacommunities.org/id/district-council/south-lakeland,28/02/2015,Electoral Services,Central Services,http://opendatacommunities.org/def/concept/finance/sercop/objective/102,SHAW & SONS LTD,176653,42044,46983,-200.25,0,Presiding Officer Packs,Stationery,340000
South Lakeland District Council,http://opendatacommunities.org/id/district-council/south-lakeland,28/02/2015,Lake Wardens,Cultural Environmental Regulatory & Planning Services,http://opendatacommunities.org/def/concept/finance/sercop/objective/104,OFCOM,7753885,42044,46984,75,0,Coastal Station Radio Licence -,Arts & Leisure Services,290000
South Lakeland District Council,http://opendatacommunities.org/id/district-council/south-lakeland,28/02/2015,Business Support Community Services,Housing Services,http://opendatacommunities.org/def/concept/finance/sercop/objective/108,James Andrews Recruitment Solutions,6834852,42044,46985,912.5,0,Payment ,Consultancy,150000
South Lakeland District Council,http://opendatacommunities.org/id/district-council/south-lakeland,28/02/2015,Policy & Partnerships,Cultural Environmental Regulatory & Planning Services,http://opendatacommunities.org/def/concept/finance/sercop/objective/104,Grange Prom Youth Project,,42053,46988,500,0,crazy golf course will complete this,Financial Services,200000
South Lakeland District Council,http://opendatacommunities.org/id/district-council/south-lakeland,28/02/2015,Business Support Community Services,Internal Trading Accounts,,LAKELAND COMMERCIALS LTD,2719162,42051,46989,46.5,0,Brake tests,Vehicle Management,380000
South Lakeland District Council,http://opendatacommunities.org/id/district-council/south-lakeland,28/02/2015,Business Support Community Services,Internal Trading Accounts,,LAKELAND COMMERCIALS LTD,2719162,42051,46989,151.5,0,Brake tests,Vehicle Management,380000
South Lakeland District Council,http://opendatacommunities.org/id/district-council/south-lakeland,28/02/2015,Business Support Community Services,Internal Trading Accounts,,H WICKS (LINDAL) LTD,754590,42051,46990,2262.8,0,Paper handling - January,Environmental Services,180000
South Lakeland District Council,http://opendatacommunities.org/id/district-council/south-lakeland,28/02/2015,Business Support Community Services,Cultural Environmental Regulatory & Planning Services,http://opendatacommunities.org/def/concept/finance/sercop/objective/104,N WESTERN INSHORE FISHERIES &,,42051,46991,2518.58,0,Collection and transport of cockles from,Environmental Services,180000
South Lakeland District Council,http://opendatacommunities.org/id/district-council/south-lakeland,28/02/2015,Printing Section,Central Services,http://opendatacommunities.org/def/concept/finance/sercop/objective/102,ROSEFOX PAPER LIMITED,1655083,42044,46992,17.6,0,Canary Yellow A4 80gam,Stationery,340000
South Lakeland District Council,http://opendatacommunities.org/id/district-council/south-lakeland,28/02/2015,Social Enterprise Admin,Central Services,http://opendatacommunities.org/def/concept/finance/sercop/objective/102,CUMBRIA COUNTY COUNCIL,,42044,46993,4115.6,0,LAND CHARGE SEARCH CHARGES,Financial Services,200000
South Lakeland District Council,http://opendatacommunities.org/id/district-council/south-lakeland,28/02/2015,Social Enterprise Admin,Central Services,http://opendatacommunities.org/def/concept/finance/sercop/objective/102,CUMBRIA COUNTY COUNCIL,,42044,46994,3982.9,0,LAND CHARGE SEARCH CHARGES,Financial Services,200000
South Lakeland District Council,http://opendatacommunities.org/id/district-council/south-lakeland,28/02/2015,ICT Group,Central Services,http://opendatacommunities.org/def/concept/finance/sercop/objective/102,Insight Direct (Uk) Ltd,2579852,42044,46995,286,0,0003609247   B50-70 INTEL CORE,Information Communication Technology,270000
South Lakeland District Council,http://opendatacommunities.org/id/district-council/south-lakeland,28/02/2015,Democratic Services,SLDC as Agent,,CASTLERIGG CONSULTING,6747285,42044,46996,8500,0,Support to the Transformation Challenge,Consultancy,150000
South Lakeland District Council,http://opendatacommunities.org/id/district-council/south-lakeland,28/02/2015,Social Enterprise Admin,Cultural Environmental Regulatory & Planning Services,http://opendatacommunities.org/def/concept/finance/sercop/objective/104,Cleartrack (EvL) Ltd,3881690,42046,46997,2100,0,Felling and dismantling Beech in,Environmental Services,180000
South Lakeland District Council,http://opendatacommunities.org/id/district-council/south-lakeland,28/02/2015,Social Enterprise Admin,Cultural Environmental Regulatory & Planning Services,http://opendatacommunities.org/def/concept/finance/sercop/objective/104,Cleartrack (EvL) Ltd,3881690,42046,46998,900,0,Emergency call out - Fell Beech Stock,Environmental Services,180000
South Lakeland District Council,http://opendatacommunities.org/id/district-council/south-lakeland,28/02/2015,Social Enterprise Admin,Cultural Environmental Regulatory & Planning Services,http://opendatacommunities.org/def/concept/finance/sercop/objective/104,Cleartrack (EvL) Ltd,3881690,42046,46999,1200,0,emergency work at Biskey Howe,Environmental Services,180000
South Lakeland District Council,http://opendatacommunities.org/id/district-council/south-lakeland,28/02/2015,Social Enterprise Admin,Cultural Environmental Regulatory & Planning Services,http://opendatacommunities.org/def/concept/finance/sercop/objective/104,Cleartrack (EvL) Ltd,3881690,42046,47000,1700,0,Dead wood all trees (aprox 30) around,Environmental Services,180000
South Lakeland District Council,http://opendatacommunities.org/id/district-council/south-lakeland,28/02/2015,Business Support Community Services,Cultural Environmental Regulatory & Planning Services,http://opendatacommunities.org/def/concept/finance/sercop/objective/104,WESTMORLAND VETERINARY GROUP,,42044,47001,158.13,0,Vet Inspection Fees,Healthcare,310000
South Lakeland District Council,http://opendatacommunities.org/id/district-council/south-lakeland,28/02/2015,Business Support Community Services,Housing Services,http://opendatacommunities.org/def/concept/finance/sercop/objective/108,Landlord,,42044,47005,520,0,Monthly rent ,Social Community Care Supplies & Services,410000
South Lakeland District Council,http://opendatacommunities.org/id/district-council/south-lakeland,28/02/2015,Business Support Community Services,Housing Services,http://opendatacommunities.org/def/concept/finance/sercop/objective/108,Landlord,,42044,47006,400,0,Monthly rent ,Social Community Care Supplies & Services,410000
South Lakeland District Council,http://opendatacommunities.org/id/district-council/south-lakeland,28/02/2015,Business Support Community Services,Housing Services,http://opendatacommunities.org/def/concept/finance/sercop/objective/108,Landlord,,42044,47007,500,0,Monthly rent ,Social Community Care Supplies & Services,410000
South Lakeland District Council,http://opendatacommunities.org/id/district-council/south-lakeland,28/02/2015,Business Support Community Services,Housing Services,http://opendatacommunities.org/def/concept/finance/sercop/objective/108,Landlord,,42044,47008,520,0,Monthly rent ,Social Community Care Supplies & Services,410000
South Lakeland District Council,http://opendatacommunities.org/id/district-council/south-lakeland,28/02/2015,Business Support Community Services,Housing Services,http://opendatacommunities.org/def/concept/finance/sercop/objective/108,Landlord,7121028,42044,47009,400,0,Monthly rent ,Social Community Care Supplies & Services,410000
South Lakeland District Council,http://opendatacommunities.org/id/district-council/south-lakeland,28/02/2015,Business Support Community Services,Housing Services,http://opendatacommunities.org/def/concept/finance/sercop/objective/108,Landlord,,42044,47010,520,0,Monthly rent ,Social Community Care Supplies & Services,410000
South Lakeland District Council,http://opendatacommunities.org/id/district-council/south-lakeland,28/02/2015,ICT Group,SLDC as Agent,,CABLE & WIRELESS UK (VODAFONE),,42044,47011,216.29,0,Call Charges 20/12/14 - 26/1/15,Financial Services,200000
South Lakeland District Council,http://opendatacommunities.org/id/district-council/south-lakeland,28/02/2015,Business Support Community Services,Housing Services,http://opendatacommunities.org/def/concept/finance/sercop/objective/108,Landlord,,42044,47012,520,0,Monthly rent ,Social Community Care Supplies & Services,410000
South Lakeland District Council,http://opendatacommunities.org/id/district-council/south-lakeland,28/02/2015,Environment and Housing,Housing,http://opendatacommunities.org/def/concept/finance/sercop/objective/108,DOLPHIN STAIRLIFTS CUMBRIA,,42046,47013,3493.74,0,"Kendal, LA9 5ET",Financial Services,200000
South Lakeland District Council,http://opendatacommunities.org/id/district-council/south-lakeland,28/02/2015,Environment and Housing,Housing,http://opendatacommunities.org/def/concept/finance/sercop/objective/108,VINCENT HOLLERAN PLUMBING & HEATING,,42044,47014,4690,0,"Kendal, LA9 7LW",Financial Services,200000
South Lakeland District Council,http://opendatacommunities.org/id/district-council/south-lakeland,28/02/2015,Business Support Community Services,SLDC as Agent,,JOANNA SMAILES,,42044,47015,1200,0,"Project Management, Cumbria NSNO &",Financial Services,200000
South Lakeland District Council,http://opendatacommunities.org/id/district-council/south-lakeland,28/02/2015,Social Enterprise Admin,Cultural Environmental Regulatory & Planning Services,http://opendatacommunities.org/def/concept/finance/sercop/objective/104,FURNESS NEWSPAPERS LTD,1155841,42044,47016,62.16,0,PUBLIC NOTICES FURNESS NEWSPAPERS,Facilities & Management Services,190000
South Lakeland District Council,http://opendatacommunities.org/id/district-council/south-lakeland,28/02/2015,Environment and Housing,Housing,http://opendatacommunities.org/def/concept/finance/sercop/objective/108,ENVIRONMENT & HOUSING GRANTS,,42044,47017,10000,0,"Levens, Kendal,",Financial Services,200000
South Lakeland District Council,http://opendatacommunities.org/id/district-council/south-lakeland,28/02/2015,Business Support Community Services,Central Services,http://opendatacommunities.org/def/concept/finance/sercop/objective/102,CIVICA UK LTD,1628868,42051,47018,14125,0,Full suite of connectors for APP as,Information Communication Technology,270000
South Lakeland District Council,http://opendatacommunities.org/id/district-council/south-lakeland,28/02/2015,Coronation Hall,External Trading Accounts,,Morson International,,42044,47019,79.52,0,Ulverston Market Hall cleaner from April,Consultancy,150000
South Lakeland District Council,http://opendatacommunities.org/id/district-council/south-lakeland,28/02/2015,Environment and Housing,Housing,http://opendatacommunities.org/def/concept/finance/sercop/objective/108,DOLPHIN STAIRLIFTS CUMBRIA,,42044,47021,1450,0,"Flookburgh, LA11 7LH",Financial Services,200000
South Lakeland District Council,http://opendatacommunities.org/id/district-council/south-lakeland,28/02/2015,Environment and Housing,Housing,http://opendatacommunities.org/def/concept/finance/sercop/objective/108,DOLPHIN STAIRLIFTS CUMBRIA,,42044,47022,1350,0,"Kendal, LA9 5PU",Financial Services,200000
South Lakeland District Council,http://opendatacommunities.org/id/district-council/south-lakeland,28/02/2015,Environment and Housing,Housing,http://opendatacommunities.org/def/concept/finance/sercop/objective/108,DOLPHIN STAIRLIFTS CUMBRIA,,42044,47023,4150,0,"The Orchard, Cart Lane,",Financial Services,200000
South Lakeland District Council,http://opendatacommunities.org/id/district-council/south-lakeland,28/02/2015,Social Enterprise Admin,Highways & Transport Services,http://opendatacommunities.org/def/concept/finance/sercop/objective/107,ARCO LIMITED,133804,42044,47024,102,0,5 X Aluminium shovels with wooden T,Vehicle Management,380000
South Lakeland District Council,http://opendatacommunities.org/id/district-council/south-lakeland,28/02/2015,Social Enterprise Admin,Central Services,http://opendatacommunities.org/def/concept/finance/sercop/objective/102,ENVIROFIRST LTD,5999123,42053,47025,211.25,0,Lowther Street Wheelie Bin Mixed,Environmental Services,180000
South Lakeland District Council,http://opendatacommunities.org/id/district-council/south-lakeland,28/02/2015,Customer Services,Cultural Environmental Regulatory & Planning Services,http://opendatacommunities.org/def/concept/finance/sercop/objective/104,RIGHT 2 WORK,,42044,47027,2231,0,Bulky waste removal from April 2014 to,Environmental Services,180000
South Lakeland District Council,http://opendatacommunities.org/id/district-council/south-lakeland,28/02/2015,Lake Wardens,SLDC as Agent,,LAKE DISTRICT NATIONAL PARK AUTHORITY,,42046,47028,160.87,0,Monthly Invoices for 2014-2015 for Boat,Financial Services,200000
South Lakeland District Council,http://opendatacommunities.org/id/district-council/south-lakeland,28/02/2015,Lake Wardens,SLDC as Agent,,LAKE DISTRICT NATIONAL PARK AUTHORITY,,42046,47029,879.4,0,Monthly Invoices for 2014-2015 for Boat,Financial Services,200000
South Lakeland District Council,http://opendatacommunities.org/id/district-council/south-lakeland,28/02/2015,Social Enterprise Admin,Transport,http://opendatacommunities.org/def/concept/finance/sercop/objective/107,Carigiet Cowen,4365363,42044,47030,1200,0,Bridge widening at Rydal road,Financial Services,200000
South Lakeland District Council,http://opendatacommunities.org/id/district-council/south-lakeland,28/02/2015,Social Enterprise Admin,Cultural Environmental Regulatory & Planning Services,http://opendatacommunities.org/def/concept/finance/sercop/objective/104,Matchtech,2526418,42051,47031,1068.19,0,TO SUPPLY DEVELOPMENT CONTROL TEAM,Consultancy,150000
South Lakeland District Council,http://opendatacommunities.org/id/district-council/south-lakeland,28/02/2015,Human Resources,Central Services,http://opendatacommunities.org/def/concept/finance/sercop/objective/102,BUSY BEES BENEFITS LTD,6758298,42044,47032,24.36,0,CHILD CARE VOUCHERS - APPROX ?500.00 PER,Financial Services,200000
South Lakeland District Council,http://opendatacommunities.org/id/district-council/south-lakeland,28/02/2015,Human Resources,Non-Service Payments,,BUSY BEES BENEFITS LTD,6758298,42044,47033,696,0,CHILD CARE VOUCHERS - APPROX ?500.00 PER,Financial Services,200000
South Lakeland District Council,http://opendatacommunities.org/id/district-council/south-lakeland,28/02/2015,Human Resources,Non-Service Payments,,COMPUTERSHARE VOUCHER SERVICES LTD,4968447,42044,47034,880,0,CHULD CARE VOUCHERS - APPROX. ?1000.00,Financial Services,200000
South Lakeland District Council,http://opendatacommunities.org/id/district-council/south-lakeland,28/02/2015,Human Resources,Central Services,http://opendatacommunities.org/def/concept/finance/sercop/objective/102,COMPUTERSHARE VOUCHER SERVICES LTD,4968447,42044,47035,33,0,CHULD CARE VOUCHERS - APPROX. ?1000.00,Financial Services,200000
South Lakeland District Council,http://opendatacommunities.org/id/district-council/south-lakeland,28/02/2015,Social Enterprise Admin,Cultural Environmental Regulatory & Planning Services,http://opendatacommunities.org/def/concept/finance/sercop/objective/104,CAPITA SYMONDS LTD,3173410,42044,47037,2235,0,ARBORICULTURE SERVICES PROVIDED BY,Environmental Services,180000
South Lakeland District Council,http://opendatacommunities.org/id/district-council/south-lakeland,28/02/2015,Social Enterprise Admin,SLDC as Agent,,PAY BY PHONE (PAYPOINT),,42046,47038,89.35,0,Pay-by-phone charges from 1 April 2014,Financial Services,200000
South Lakeland District Council,http://opendatacommunities.org/id/district-council/south-lakeland,28/02/2015,Development Strategy,Central Services,http://opendatacommunities.org/def/concept/finance/sercop/objective/102,CUMBRIA COUNTY COUNCIL,,42046,47039,400,0,CPTS - training scheme contribution,Education,170000
South Lakeland District Council,http://opendatacommunities.org/id/district-council/south-lakeland,28/02/2015,Legal Services,Central Services,http://opendatacommunities.org/def/concept/finance/sercop/objective/102,VENN GROUP RECRUITMENT SOLUTIONS,,42046,47040,494.49,0,Wages from w/k ending,Consultancy,150000
South Lakeland District Council,http://opendatacommunities.org/id/district-council/south-lakeland,28/02/2015,Kendal Town Hall,Central Services,http://opendatacommunities.org/def/concept/finance/sercop/objective/102,BERENDSEN UK LTD,228604,42046,47041,76.5,0,Rental and weekly replacement of the 2,Cleaning & Janitorial,130000
South Lakeland District Council,http://opendatacommunities.org/id/district-council/south-lakeland,28/02/2015,Kendal Town Hall,Cultural Environmental Regulatory & Planning Services,http://opendatacommunities.org/def/concept/finance/sercop/objective/104,BERENDSEN UK LTD,228604,42046,47041,29.25,0,Rental and weekly replacement of the 2,Cleaning & Janitorial,130000
South Lakeland District Council,http://opendatacommunities.org/id/district-council/south-lakeland,28/02/2015,Legal Services,Cultural Environmental Regulatory & Planning Services,http://opendatacommunities.org/def/concept/finance/sercop/objective/104,7 Harrington Street Chambers,,42046,47042,5500,0,Fees re:  R -v- Timothy Melling - our,Legal Services,280000
South Lakeland District Council,http://opendatacommunities.org/id/district-council/south-lakeland,28/02/2015,Business Support Community Services,SLDC as Agent,,DISCLOSURE AND BARRING SERVICE,,42046,47043,88,0,DBS checks for taxi drivers,Legal Services,280000
South Lakeland District Council,http://opendatacommunities.org/id/district-council/south-lakeland,28/02/2015,Business Support Community Services,Internal Trading Accounts,,AINSWORTH'S GARAGE,,42051,47044,16,0,COC,Vehicle Management,380000
South Lakeland District Council,http://opendatacommunities.org/id/district-council/south-lakeland,28/02/2015,Revenues and Benefits,SLDC as Agent,,ROYAL MAIL GROUP PLC,,42046,47045,1218.94,0,2014-15  Postal Charges a/c 0198123013,Financial Services,200000
South Lakeland District Council,http://opendatacommunities.org/id/district-council/south-lakeland,28/02/2015,Democratic Services,Central Services,http://opendatacommunities.org/def/concept/finance/sercop/objective/102,GATES TRAVEL SERVICE,,42046,47051,100.8,0,Transport to London,Public Transport,360000
South Lakeland District Council,http://opendatacommunities.org/id/district-council/south-lakeland,28/02/2015,Policy & Partnerships,Central Services,http://opendatacommunities.org/def/concept/finance/sercop/objective/102,GATES TRAVEL SERVICE,,42046,47052,94.6,0,Electoral Commission,Public Transport,360000
South Lakeland District Council,http://opendatacommunities.org/id/district-council/south-lakeland,28/02/2015,Social Enterprise Admin,Highways & Transport Services,http://opendatacommunities.org/def/concept/finance/sercop/objective/107,METRIC GROUP LIMITED,2560839,42046,47053,693,0,Web hosting and web tariff editor for 66,Vehicle Management,380000
South Lakeland District Council,http://opendatacommunities.org/id/district-council/south-lakeland,28/02/2015,Democratic Services,Central Services,http://opendatacommunities.org/def/concept/finance/sercop/objective/102,CARLISLE CITY COUNCIL,,42046,47054,80,0,Councillor to attend Public,Education,170000
South Lakeland District Council,http://opendatacommunities.org/id/district-council/south-lakeland,28/02/2015,Business Support Community Services,Internal Trading Accounts,,ARCO LIMITED,133804,42051,47055,41.4,0,Browguards,Clothing,140000
South Lakeland District Council,http://opendatacommunities.org/id/district-council/south-lakeland,28/02/2015,Social Enterprise Admin,Cultural Environmental Regulatory & Planning Services,http://opendatacommunities.org/def/concept/finance/sercop/objective/104,FURNESS NEWSPAPERS LTD,1155841,42051,47056,62.16,0,PUBLIC NOTICES FURNESS NEWSPAPERS,Facilities & Management Services,190000
South Lakeland District Council,http://opendatacommunities.org/id/district-council/south-lakeland,28/02/2015,Business Support Community Services,Cultural Environmental Regulatory & Planning Services,http://opendatacommunities.org/def/concept/finance/sercop/objective/104,BLACKPOOL BOROUGH COUNCIL,,42046,47059,755,0,Northern Coastal Sub Group Fee,Financial Services,200000
South Lakeland District Council,http://opendatacommunities.org/id/district-council/south-lakeland,28/02/2015,Financial Services,Central Services,http://opendatacommunities.org/def/concept/finance/sercop/objective/102,ALLPAY.NET LTD (NCR),6871069,42062,47073,24.47,0,Inv. 356685 31.01.15 SLSD,Financial Services,200000
South Lakeland District Council,http://opendatacommunities.org/id/district-council/south-lakeland,28/02/2015,Financial Services,Central Services,http://opendatacommunities.org/def/concept/finance/sercop/objective/102,ALLPAY.NET LTD (NCR),6871069,42062,47074,486.02,0,Inv. 356685 31.01.15 SLSD,Financial Services,200000
South Lakeland District Council,http://opendatacommunities.org/id/district-council/south-lakeland,28/02/2015,Financial Services,Central Services,http://opendatacommunities.org/def/concept/finance/sercop/objective/102,ALLPAY.NET LTD (NCR),6871069,42062,47075,36.35,0,Inv. 356685 31.01.15 SLSD,Financial Services,200000
South Lakeland District Council,http://opendatacommunities.org/id/district-council/south-lakeland,28/02/2015,Social Enterprise Admin,Highways & Transport Services,http://opendatacommunities.org/def/concept/finance/sercop/objective/107,CREDIT CALL LTD (NCR),,42062,47076,30,0,CC  charge for teminal set up,Street & Traffic Management,350000
South Lakeland District Council,http://opendatacommunities.org/id/district-council/south-lakeland,28/02/2015,Social Enterprise Admin,Highways & Transport Services,http://opendatacommunities.org/def/concept/finance/sercop/objective/107,CREDIT CALL LTD (NCR),,42062,47077,332.81,0,Credit Call Commission 2014/15,Financial Services,200000
South Lakeland District Council,http://opendatacommunities.org/id/district-council/south-lakeland,28/02/2015,Revenues and Benefits,Central Services,http://opendatacommunities.org/def/concept/finance/sercop/objective/102,BADENOCH & CLARK,1356186,42046,47078,533.4,0,Revs and Bens,Consultancy,150000
South Lakeland District Council,http://opendatacommunities.org/id/district-council/south-lakeland,28/02/2015,Environmental Protection,Cultural Environmental Regulatory & Planning Services,http://opendatacommunities.org/def/concept/finance/sercop/objective/104,GLASDON UK LTD,2160576,42053,47080,308.51,0,6 off Glasdon Grey EDGELINER Bollards,Horticultural,240000
South Lakeland District Council,http://opendatacommunities.org/id/district-council/south-lakeland,28/02/2015,Social Enterprise Admin,Highways & Transport Services,http://opendatacommunities.org/def/concept/finance/sercop/objective/107,BEMROSE BOOTH PARAGON LTD,4891375,42046,47081,522.64,0,Car Park Permits,Stationery,340000
South Lakeland District Council,http://opendatacommunities.org/id/district-council/south-lakeland,28/02/2015,Revenues and Benefits,Central Services,http://opendatacommunities.org/def/concept/finance/sercop/objective/102,ROYAL MAIL GROUP PLC,,42046,47084,48.88,0,2014-15  Postal Charges a/c 0055114000,Mail Services,300000
South Lakeland District Council,http://opendatacommunities.org/id/district-council/south-lakeland,28/02/2015,Social Enterprise Admin,Cultural Environmental Regulatory & Planning Services,http://opendatacommunities.org/def/concept/finance/sercop/objective/104,NEWSQUEST (NORTH WEST) LTD,3102566,42051,47085,131,0,PUBLIC NOTICES FOR PLANNIG DEPARTMENT.,Facilities & Management Services,190000
South Lakeland District Council,http://opendatacommunities.org/id/district-council/south-lakeland,28/02/2015,Human Resources,Central Services,http://opendatacommunities.org/def/concept/finance/sercop/objective/102,Indicator - FL Memo Ltd,3599719,42058,47086,120.7,0,Employment Memo 2015,Stationery,340000
South Lakeland District Council,http://opendatacommunities.org/id/district-council/south-lakeland,28/02/2015,Business Support Community Services,Internal Trading Accounts,,JOHNSTON SWEEPERS LTD,199841,42051,47087,216.39,0,Tube,Vehicle Management,380000
South Lakeland District Council,http://opendatacommunities.org/id/district-council/south-lakeland,28/02/2015,Business Support Community Services,Internal Trading Accounts,,AINSWORTH'S GARAGE,,42051,47088,212.5,0,Recover SL009,Vehicle Management,380000
South Lakeland District Council,http://opendatacommunities.org/id/district-council/south-lakeland,28/02/2015,Business Support Community Services,Internal Trading Accounts,,AINSWORTH'S GARAGE,,42051,47089,212.5,0,Recover SL204,Vehicle Management,380000
South Lakeland District Council,http://opendatacommunities.org/id/district-council/south-lakeland,28/02/2015,Technical Team,Cultural Environmental Regulatory & Planning Services,http://opendatacommunities.org/def/concept/finance/sercop/objective/104,Matchtech,2526418,42051,47090,730.8,0,TO SUPPLY  CONTRACT 16,Consultancy,150000
South Lakeland District Council,http://opendatacommunities.org/id/district-council/south-lakeland,28/02/2015,Human Resources,Central Services,http://opendatacommunities.org/def/concept/finance/sercop/objective/102,EMPLOYMENT PAGES LTD,7363099,42053,47091,224.4,0,Advertisements for Coronation Hall,Human Resources,260000
South Lakeland District Council,http://opendatacommunities.org/id/district-council/south-lakeland,28/02/2015,Human Resources,Central Services,http://opendatacommunities.org/def/concept/finance/sercop/objective/102,EMPLOYMENT PAGES LTD,7363099,42053,47091,224.4,0,Advertisements for Coronation Hall,Human Resources,260000
South Lakeland District Council,http://opendatacommunities.org/id/district-council/south-lakeland,28/02/2015,Human Resources,Cultural Environmental Regulatory & Planning Services,http://opendatacommunities.org/def/concept/finance/sercop/objective/104,EMPLOYMENT PAGES LTD,7363099,42053,47091,224.4,0,Advertisements for Coronation Hall,Facilities & Management Services,190000
South Lakeland District Council,http://opendatacommunities.org/id/district-council/south-lakeland,28/02/2015,Business Support Community Services,Housing Services,http://opendatacommunities.org/def/concept/finance/sercop/objective/108,ADECCO UK LIMITED,593232,42051,47092,102.7,0,Cleaner for Town View Fields,Consultancy,150000
South Lakeland District Council,http://opendatacommunities.org/id/district-council/south-lakeland,28/02/2015,Policy & Partnerships,Central Services,http://opendatacommunities.org/def/concept/finance/sercop/objective/102,NORTHGATE VEHICLE HIRE LTD,1434157,42053,47093,14.4,0,Car hire for Ulverston VH School visit,Street & Traffic Management,350000
South Lakeland District Council,http://opendatacommunities.org/id/district-council/south-lakeland,28/02/2015,Financial Services,Central Services,http://opendatacommunities.org/def/concept/finance/sercop/objective/102,ALLPAY.NET LTD (NCR),6871069,42062,47094,27.13,0,Inv. 356685 31.01.15 SLSD,Financial Services,200000
South Lakeland District Council,http://opendatacommunities.org/id/district-council/south-lakeland,28/02/2015,Financial Services,Central Services,http://opendatacommunities.org/def/concept/finance/sercop/objective/102,ALLPAY.NET LTD (NCR),6871069,42062,47095,885.91,0,Inv. 356685 31.01.15 SLSD,Financial Services,200000
South Lakeland District Council,http://opendatacommunities.org/id/district-council/south-lakeland,28/02/2015,Human Resources,Central Services,http://opendatacommunities.org/def/concept/finance/sercop/objective/102,University of Oxford,,42046,47100,21000,0,Diploma in Strategy and,Education,170000
South Lakeland District Council,http://opendatacommunities.org/id/district-council/south-lakeland,28/02/2015,Human Resources,Central Services,http://opendatacommunities.org/def/concept/finance/sercop/objective/102,SOUTH LAKES HOUSING,IP031419,42053,47112,180,0,Hire of Windermere Room  for IOSH course,Education,170000
South Lakeland District Council,http://opendatacommunities.org/id/district-council/south-lakeland,28/02/2015,Lake Wardens,Cultural Environmental Regulatory & Planning Services,http://opendatacommunities.org/def/concept/finance/sercop/objective/104,CPC,,42046,47113,13.05,0,12 x Boxes of 125mm Roundhead Nails,Arts & Leisure Services,290000
South Lakeland District Council,http://opendatacommunities.org/id/district-council/south-lakeland,28/02/2015,Lake Wardens,Cultural Environmental Regulatory & Planning Services,http://opendatacommunities.org/def/concept/finance/sercop/objective/104,CPC,,42046,47113,28.38,0,12 x Boxes of 125mm Roundhead Nails,Arts & Leisure Services,290000
South Lakeland District Council,http://opendatacommunities.org/id/district-council/south-lakeland,28/02/2015,Customer Services,Central Services,http://opendatacommunities.org/def/concept/finance/sercop/objective/102,STEVEN BARBER PHOTOGRAPHY LTD,6058535,42046,47114,300,0,photograpy for Southlakeland news,Facilities & Management Services,190000
South Lakeland District Council,http://opendatacommunities.org/id/district-council/south-lakeland,28/02/2015,Coronation Hall,Cultural Environmental Regulatory & Planning Services,http://opendatacommunities.org/def/concept/finance/sercop/objective/104,OCS GROUP LTD T/A CANNON HYGIENE LTD,1298292,42046,47116,231,0,Medical waste and sanitary disposal to,Cleaning & Janitorial,130000
South Lakeland District Council,http://opendatacommunities.org/id/district-council/south-lakeland,28/02/2015,Revenues and Benefits,Central Services,http://opendatacommunities.org/def/concept/finance/sercop/objective/102,CIVICA UK LTD,1628868,42046,47117,160,0,Year End seminar,Education,170000
South Lakeland District Council,http://opendatacommunities.org/id/district-council/south-lakeland,28/02/2015,Social Enterprise Admin,Cultural Environmental Regulatory & Planning Services,http://opendatacommunities.org/def/concept/finance/sercop/objective/104,Cleartrack (EvL) Ltd,3881690,42046,47118,5000,0,Fixed price quote for works at High,Environmental Services,180000
South Lakeland District Council,http://opendatacommunities.org/id/district-council/south-lakeland,28/02/2015,Business Support Community Services,Housing Services,http://opendatacommunities.org/def/concept/finance/sercop/objective/108,ROGERSON HOME SERVE+ LTD,7344188,42046,47119,75,0,Out of hours call for radiator ,Social Community Care Supplies & Services,410000
South Lakeland District Council,http://opendatacommunities.org/id/district-council/south-lakeland,28/02/2015,Business Support Community Services,Housing Services,http://opendatacommunities.org/def/concept/finance/sercop/objective/108,Cumbria Cleaning Services,9016061,42046,47120,210,0,"Cleaning at 18a Bleaswood Road,",Social Community Care Supplies & Services,410000
South Lakeland District Council,http://opendatacommunities.org/id/district-council/south-lakeland,28/02/2015,Development Implementation,Cultural Environmental Regulatory & Planning Services,http://opendatacommunities.org/def/concept/finance/sercop/objective/104,SCK WEB WORKS LTD,6994365,42046,47121,160,0,Duplication of Business Directory onto,Environmental Services,180000
South Lakeland District Council,http://opendatacommunities.org/id/district-council/south-lakeland,28/02/2015,Coronation Hall,Cultural Environmental Regulatory & Planning Services,http://opendatacommunities.org/def/concept/finance/sercop/objective/104,Ulverston Community Partnership,,42046,47122,795,0,89mm x 200mm advertisement in the,Facilities & Management Services,190000
South Lakeland District Council,http://opendatacommunities.org/id/district-council/south-lakeland,28/02/2015,Human Resources,Central Services,http://opendatacommunities.org/def/concept/finance/sercop/objective/102,THE QUAKER TAPESTRY KENDAL LTD,,42060,47123,203,0,Room Hire for 20 people,Education,170000
South Lakeland District Council,http://opendatacommunities.org/id/district-council/south-lakeland,28/02/2015,Human Resources,Central Services,http://opendatacommunities.org/def/concept/finance/sercop/objective/102,THE QUAKER TAPESTRY KENDAL LTD,,42051,47124,181.6,0,"Room Hire - 22/01/2014 project, drinks",Education,170000
South Lakeland District Council,http://opendatacommunities.org/id/district-council/south-lakeland,28/02/2015,Financial Services,Central Services,http://opendatacommunities.org/def/concept/finance/sercop/objective/102,CAPITA BUSINESS SERVICES LTD (NCR),,42062,47127,874.86,0,Inv.6003001952 12.01.15 Internet,Financial Services,200000
South Lakeland District Council,http://opendatacommunities.org/id/district-council/south-lakeland,28/02/2015,Customer Services,Central Services,http://opendatacommunities.org/def/concept/finance/sercop/objective/102,Giles Brown,,42051,47128,125,0,writing focus on hawkshead for,Facilities & Management Services,190000
South Lakeland District Council,http://opendatacommunities.org/id/district-council/south-lakeland,28/02/2015,Social Enterprise Admin,Cultural Environmental Regulatory & Planning Services,http://opendatacommunities.org/def/concept/finance/sercop/objective/104,URBANVISION PARTNERSHIP LTD,,42051,47129,5818.01,0,BUSINESS DEVELOPMENT AND PROJECT,Consultancy,150000
South Lakeland District Council,http://opendatacommunities.org/id/district-council/south-lakeland,28/02/2015,Social Enterprise Admin,Cultural Environmental Regulatory & Planning Services,http://opendatacommunities.org/def/concept/finance/sercop/objective/104,FURNESS NEWSPAPERS LTD,1155841,42051,47130,62.16,0,PUBLIC NOTICES FURNESS NEWSPAPERS,Facilities & Management Services,190000
South Lakeland District Council,http://opendatacommunities.org/id/district-council/south-lakeland,28/02/2015,Business Support Community Services,Internal Trading Accounts,,LANCASTER TRAINING SERVICES LTD,1447612,42051,47131,145,0,FLT Operator training,Education,170000
South Lakeland District Council,http://opendatacommunities.org/id/district-council/south-lakeland,28/02/2015,Lake Wardens,Cultural Environmental Regulatory & Planning Services,http://opendatacommunities.org/def/concept/finance/sercop/objective/104,LANCASTER TRAINING SERVICES LTD,1447612,42051,47132,520,0,Provide 6 x Tractor Familiarisation &,Education,170000
South Lakeland District Council,http://opendatacommunities.org/id/district-council/south-lakeland,28/02/2015,Legal Services,External Trading Accounts,,HYGIENE CLEANING SUPPLIES LTD,4753934,42051,47133,130.26,0,JC 56 6 x 5 ltr general multi purpose,Cleaning & Janitorial,130000
South Lakeland District Council,http://opendatacommunities.org/id/district-council/south-lakeland,28/02/2015,Business Support Community Services,Housing Services,http://opendatacommunities.org/def/concept/finance/sercop/objective/108,James Andrews Recruitment Solutions,6834852,42051,47134,925,0,Payment ,Consultancy,150000
South Lakeland District Council,http://opendatacommunities.org/id/district-council/south-lakeland,28/02/2015,ICT Group,Central Services,http://opendatacommunities.org/def/concept/finance/sercop/objective/102,VODAFONE LIMITED,1471587,42051,47135,55,0,Motorola ,Financial Services,200000
South Lakeland District Council,http://opendatacommunities.org/id/district-council/south-lakeland,28/02/2015,Business Support Community Services,Central Services,http://opendatacommunities.org/def/concept/finance/sercop/objective/102,Romaquip Ltd,,42051,47136,124480,0,Per quotation dated 27/06/14,Vehicle Management,380000
South Lakeland District Council,http://opendatacommunities.org/id/district-council/south-lakeland,28/02/2015,ICT Group,Central Services,http://opendatacommunities.org/def/concept/finance/sercop/objective/102,VODAFONE LIMITED,1471587,42051,47137,55,0,Motorola ,Information Communication Technology,270000
South Lakeland District Council,http://opendatacommunities.org/id/district-council/south-lakeland,28/02/2015,ICT Group,Central Services,http://opendatacommunities.org/def/concept/finance/sercop/objective/102,VODAFONE LIMITED,1471587,42051,47138,55,0,Motorola ,Information Communication Technology,270000
South Lakeland District Council,http://opendatacommunities.org/id/district-council/south-lakeland,28/02/2015,Business Support Community Services,Internal Trading Accounts,,AUTOKONTROL LIMITED,,42051,47139,25.85,0,Elbows,Vehicle Management,380000
South Lakeland District Council,http://opendatacommunities.org/id/district-council/south-lakeland,28/02/2015,Business Support Community Services,Internal Trading Accounts,,CENTRAL DIESEL,,42051,47140,1017.2,0,Repair gearbox,Vehicle Management,380000
South Lakeland District Council,http://opendatacommunities.org/id/district-council/south-lakeland,28/02/2015,Business Support Community Services,Internal Trading Accounts,,HAKO MACHINES LIMITED,1414225,42051,47141,143.97,0,Lever,Vehicle Management,380000
South Lakeland District Council,http://opendatacommunities.org/id/district-council/south-lakeland,28/02/2015,Business Support Community Services,Central Services,http://opendatacommunities.org/def/concept/finance/sercop/objective/102,TOUCHDOWN OFFICES LTD,4844444,42051,47142,185.63,0,Call charges to 30/04,Information Communication Technology,270000
South Lakeland District Council,http://opendatacommunities.org/id/district-council/south-lakeland,28/02/2015,Business Support Community Services,Internal Trading Accounts,,THE HELPING HAND COMPANY,2172956,42051,47143,763.5,0,LP3035 - Ranger Curved 88cm,Furniture & Soft Furnishings,210000
South Lakeland District Council,http://opendatacommunities.org/id/district-council/south-lakeland,28/02/2015,Business Support Community Services,Internal Trading Accounts,,METCALFE BROS LTD,5899629,42051,47144,2080,0,Sweeper hire - November (estimated),Facilities & Management Services,190000
South Lakeland District Council,http://opendatacommunities.org/id/district-council/south-lakeland,28/02/2015,Business Support Community Services,Internal Trading Accounts,,EK MOTOR FACTORS LTD,838524,42051,47145,25.24,0,Hose,Vehicle Management,380000
South Lakeland District Council,http://opendatacommunities.org/id/district-council/south-lakeland,28/02/2015,Business Support Community Services,Internal Trading Accounts,,Hydrodec (UK) Ltd T/A OSS Group,8652156,42051,47146,110,0,Oil filter drum disposal,Vehicle Management,380000
South Lakeland District Council,http://opendatacommunities.org/id/district-council/south-lakeland,28/02/2015,Business Support Community Services,Internal Trading Accounts,,M G D LTD,,42051,47147,35,0,MOTs 01/04/14 - 31/03/15,Vehicle Management,380000
South Lakeland District Council,http://opendatacommunities.org/id/district-council/south-lakeland,28/02/2015,Business Support Community Services,Internal Trading Accounts,,SITA UK LTD,2291198,42051,47148,12220.06,0,"Tipping & disposal charges, recyclables",Environmental Services,180000
South Lakeland District Council,http://opendatacommunities.org/id/district-council/south-lakeland,28/02/2015,Business Support Community Services,Internal Trading Accounts,,ARCO LIMITED,133804,42051,47149,131.76,0,Wipes,Clothing,140000
South Lakeland District Council,http://opendatacommunities.org/id/district-council/south-lakeland,28/02/2015,Business Support Community Services,Internal Trading Accounts,,AUTOMOTIVE GLAZING SOLUTIONS,5922870,42051,47150,45,0,Windscreen repair,Vehicle Management,380000
South Lakeland District Council,http://opendatacommunities.org/id/district-council/south-lakeland,28/02/2015,Business Support Community Services,Internal Trading Accounts,,SETON,4065947,42051,47151,99.15,0,FAD298: 1 litre sharps disposal boxes,Furniture & Soft Furnishings,210000
South Lakeland District Council,http://opendatacommunities.org/id/district-council/south-lakeland,28/02/2015,Business Support Community Services,Internal Trading Accounts,,FAUN ZOELLER (UK) LTD,751804,42051,47152,188.92,0,Springs,Vehicle Management,380000
South Lakeland District Council,http://opendatacommunities.org/id/district-council/south-lakeland,28/02/2015,Business Support Community Services,Internal Trading Accounts,,UNIVERSITY OF CENTRAL LANCASHIRE,7623917,42051,47153,33,0,Recycling Managers Training,Education,170000
South Lakeland District Council,http://opendatacommunities.org/id/district-council/south-lakeland,28/02/2015,Business Support Community Services,Internal Trading Accounts,,UNIVERSITY OF CENTRAL LANCASHIRE,7623917,42051,47153,67,0,Recycling Managers Training,Education,170000
South Lakeland District Council,http://opendatacommunities.org/id/district-council/south-lakeland,28/02/2015,Business Support Community Services,Internal Trading Accounts,,C T HAYTON LTD,1212766,42051,47154,3.8,0,Cable,Vehicle Management,380000
South Lakeland District Council,http://opendatacommunities.org/id/district-council/south-lakeland,28/02/2015,Financial Services,Central Services,http://opendatacommunities.org/def/concept/finance/sercop/objective/102,DAISY COMMUNICATIONS LTD,4145329,42051,47155,13.4,0,Calls and Services Daisy Jan to March,Information Communication Technology,270000
South Lakeland District Council,http://opendatacommunities.org/id/district-council/south-lakeland,28/02/2015,Financial Services,Central Services,http://opendatacommunities.org/def/concept/finance/sercop/objective/102,DAISY COMMUNICATIONS LTD,4145329,42051,47155,51.93,0,Calls and Services Daisy Jan to March,Information Communication Technology,270000
South Lakeland District Council,http://opendatacommunities.org/id/district-council/south-lakeland,28/02/2015,Financial Services,Central Services,http://opendatacommunities.org/def/concept/finance/sercop/objective/102,DAISY COMMUNICATIONS LTD,4145329,42051,47155,105.43,0,Calls and Services Daisy Jan to March,Information Communication Technology,270000
South Lakeland District Council,http://opendatacommunities.org/id/district-council/south-lakeland,28/02/2015,Financial Services,Highways & Transport Services,http://opendatacommunities.org/def/concept/finance/sercop/objective/107,DAISY COMMUNICATIONS LTD,4145329,42051,47155,11.65,0,Calls and Services Daisy Jan to March,Information Communication Technology,270000
South Lakeland District Council,http://opendatacommunities.org/id/district-council/south-lakeland,28/02/2015,Financial Services,Transport Planning Policy,http://opendatacommunities.org/def/concept/finance/sercop/objective/107,DAISY COMMUNICATIONS LTD,4145329,42051,47155,34.95,0,Calls and Services Daisy Jan to March,Information Communication Technology,270000
South Lakeland District Council,http://opendatacommunities.org/id/district-council/south-lakeland,28/02/2015,Financial Services,Transport Planning Policy,http://opendatacommunities.org/def/concept/finance/sercop/objective/107,DAISY COMMUNICATIONS LTD,4145329,42051,47155,38.43,0,Calls and Services Daisy Jan to March,Information Communication Technology,270000
South Lakeland District Council,http://opendatacommunities.org/id/district-council/south-lakeland,28/02/2015,Financial Services,Cultural Environmental Regulatory & Planning Services,http://opendatacommunities.org/def/concept/finance/sercop/objective/104,DAISY COMMUNICATIONS LTD,4145329,42051,47155,23.3,0,Calls and Services Daisy Jan to March,Information Communication Technology,270000
South Lakeland District Council,http://opendatacommunities.org/id/district-council/south-lakeland,28/02/2015,Financial Services,Housing Services,http://opendatacommunities.org/def/concept/finance/sercop/objective/108,DAISY COMMUNICATIONS LTD,4145329,42051,47155,39.18,0,Calls and Services Daisy Jan to March,Information Communication Technology,270000
South Lakeland District Council,http://opendatacommunities.org/id/district-council/south-lakeland,28/02/2015,Financial Services,External Trading Accounts,,DAISY COMMUNICATIONS LTD,4145329,42051,47155,36.85,0,Calls and Services Daisy Jan to March,Information Communication Technology,270000
South Lakeland District Council,http://opendatacommunities.org/id/district-council/south-lakeland,28/02/2015,Financial Services,Cultural Environmental Regulatory & Planning Services,http://opendatacommunities.org/def/concept/finance/sercop/objective/104,DAISY COMMUNICATIONS LTD,4145329,42051,47155,41.17,0,Calls and Services Daisy Jan to March,Information Communication Technology,270000
South Lakeland District Council,http://opendatacommunities.org/id/district-council/south-lakeland,28/02/2015,Financial Services,Cultural Environmental Regulatory & Planning Services,http://opendatacommunities.org/def/concept/finance/sercop/objective/104,DAISY COMMUNICATIONS LTD,4145329,42051,47155,132.84,0,Calls and Services Daisy Jan to March,Information Communication Technology,270000
South Lakeland District Council,http://opendatacommunities.org/id/district-council/south-lakeland,28/02/2015,Financial Services,SLDC as Agent,,DAISY COMMUNICATIONS LTD,4145329,42051,47155,81.77,0,Calls and Services Daisy Jan to March,Financial Services,200000
South Lakeland District Council,http://opendatacommunities.org/id/district-council/south-lakeland,28/02/2015,Financial Services,SLDC as Agent,,DAISY COMMUNICATIONS LTD,4145329,42051,47155,34.24,0,Calls and Services Daisy Jan to March,Financial Services,200000
South Lakeland District Council,http://opendatacommunities.org/id/district-council/south-lakeland,28/02/2015,Business Support Community Services,Internal Trading Accounts,,POST OFFICE LTD,2154540,42054,47156,365,0,Licence SL028 & SL049,Vehicle Management,380000
South Lakeland District Council,http://opendatacommunities.org/id/district-council/south-lakeland,28/02/2015,Development Strategy,Housing Services,http://opendatacommunities.org/def/concept/finance/sercop/objective/108,MORGAN HUNT UK LIMITED,4349535,42051,47160,765.16,0,Housing Advice Manager,Consultancy,150000
South Lakeland District Council,http://opendatacommunities.org/id/district-council/south-lakeland,28/02/2015,Development Strategy,Housing Services,http://opendatacommunities.org/def/concept/finance/sercop/objective/108,MORGAN HUNT UK LIMITED,4349535,42051,47160,765.16,0,Housing Advice Manager,Consultancy,150000
South Lakeland District Council,http://opendatacommunities.org/id/district-council/south-lakeland,28/02/2015,Financial Services,Central Services,http://opendatacommunities.org/def/concept/finance/sercop/objective/102,GREATER MANCHESTER PENSION FUND,,42051,47161,274.84,0,Qtr contribution re past pensions,Financial Services,200000
South Lakeland District Council,http://opendatacommunities.org/id/district-council/south-lakeland,28/02/2015,Social Enterprise Admin,Central Services,http://opendatacommunities.org/def/concept/finance/sercop/objective/102,NORTHGATE VEHICLE HIRE LTD,1434157,42058,47162,38.4,0,Car Hire ,Education,170000
South Lakeland District Council,http://opendatacommunities.org/id/district-council/south-lakeland,28/02/2015,Democratic Services,Central Services,http://opendatacommunities.org/def/concept/finance/sercop/objective/102,GATES TRAVEL SERVICE,,42051,47163,35,0,Weds 11 Feb - Lancaster to London Euston,Public Transport,360000
South Lakeland District Council,http://opendatacommunities.org/id/district-council/south-lakeland,28/02/2015,Development Management,Cultural Environmental Regulatory & Planning Services,http://opendatacommunities.org/def/concept/finance/sercop/objective/104,CHRIS BOWKER LTD,1642561,42058,47164,60,0,Inspection of electrical work and,Facilities & Management Services,190000
South Lakeland District Council,http://opendatacommunities.org/id/district-council/south-lakeland,28/02/2015,Business Support Community Services,Cultural Environmental Regulatory & Planning Services,http://opendatacommunities.org/def/concept/finance/sercop/objective/104,HORIBA INSTRUMENTS LTD,2242542,42058,47165,1515.12,0,Service and Repair of Air Quality,Environmental Services,180000
South Lakeland District Council,http://opendatacommunities.org/id/district-council/south-lakeland,28/02/2015,Business Support Community Services,Internal Trading Accounts,,JOHNSTON SWEEPERS LTD,199841,42051,47166,175.66,0,Stock,Vehicle Management,380000
South Lakeland District Council,http://opendatacommunities.org/id/district-council/south-lakeland,28/02/2015,Printing Section,Central Services,http://opendatacommunities.org/def/concept/finance/sercop/objective/102,ROSEFOX PAPER LIMITED,1655083,42051,47167,620.83,0,Paper One A4 80gsm,Stationery,340000
South Lakeland District Council,http://opendatacommunities.org/id/district-council/south-lakeland,28/02/2015,Coronation Hall,Central Services,http://opendatacommunities.org/def/concept/finance/sercop/objective/102,OLTEC GROUP CLEANING & JANITORIAL SUPPLI,,42051,47168,99.6,0,Cleaning of Ulverston Town Hall up to 31,Consultancy,150000
South Lakeland District Council,http://opendatacommunities.org/id/district-council/south-lakeland,28/02/2015,Coronation Hall,Central Services,http://opendatacommunities.org/def/concept/finance/sercop/objective/102,OLTEC GROUP CLEANING & JANITORIAL SUPPLI,,42051,47169,99.6,0,Cleaning of Ulverston Town Hall up to 31,Consultancy,150000
South Lakeland District Council,http://opendatacommunities.org/id/district-council/south-lakeland,28/02/2015,Coronation Hall,Central Services,http://opendatacommunities.org/def/concept/finance/sercop/objective/102,OLTEC GROUP CLEANING & JANITORIAL SUPPLI,,42051,47170,99.6,0,Cleaning of Ulverston Town Hall up to 31,Consultancy,150000
South Lakeland District Council,http://opendatacommunities.org/id/district-council/south-lakeland,28/02/2015,Coronation Hall,Central Services,http://opendatacommunities.org/def/concept/finance/sercop/objective/102,OLTEC GROUP CLEANING & JANITORIAL SUPPLI,,42051,47171,99.6,0,Cleaning of Ulverston Town Hall up to 31,Consultancy,150000
South Lakeland District Council,http://opendatacommunities.org/id/district-council/south-lakeland,28/02/2015,Human Resources,Central Services,http://opendatacommunities.org/def/concept/finance/sercop/objective/102,HFX LIMITED,8137794,42060,47172,20632.75,0,Etamis software costs including,Information Communication Technology,270000
South Lakeland District Council,http://opendatacommunities.org/id/district-council/south-lakeland,28/02/2015,Human Resources,Central Services,http://opendatacommunities.org/def/concept/finance/sercop/objective/102,HFX LIMITED,8137794,42060,47172,2916.52,0,Etamis software costs including,"Works - Construction, Repair & Maintenance",390000
South Lakeland District Council,http://opendatacommunities.org/id/district-council/south-lakeland,28/02/2015,Human Resources,Central Services,http://opendatacommunities.org/def/concept/finance/sercop/objective/102,HFX LIMITED,8137794,42060,47172,592.27,0,Etamis software costs including,"Works - Construction, Repair & Maintenance",390000
South Lakeland District Council,http://opendatacommunities.org/id/district-council/south-lakeland,28/02/2015,Business Support Community Services,Internal Trading Accounts,,ARCO LIMITED,133804,42051,47174,-13.95,0,Wipes,Clothing,140000
South Lakeland District Council,http://opendatacommunities.org/id/district-council/south-lakeland,28/02/2015,Human Resources,Central Services,http://opendatacommunities.org/def/concept/finance/sercop/objective/102,SOUTH LAKES HOUSING,IP031419,42051,47175,180,0,Room hire for 10th & 11th February 2015,Education,170000
South Lakeland District Council,http://opendatacommunities.org/id/district-council/south-lakeland,28/02/2015,Business Support Community Services,Internal Trading Accounts,,COMPASS COMPONENTS,,42051,47176,144.44,0,Consumables 01/04/14 - 31/03/15,Cleaning & Janitorial,130000
South Lakeland District Council,http://opendatacommunities.org/id/district-council/south-lakeland,28/02/2015,Business Support Community Services,Internal Trading Accounts,,BRIAN ARMISTEAD LTD T/A SINKFALL RECYCLI,4133280,42051,47177,262,0,Green waste tipping - April (estimated),Environmental Services,180000
South Lakeland District Council,http://opendatacommunities.org/id/district-council/south-lakeland,28/02/2015,Business Support Community Services,Cultural Environmental Regulatory & Planning Services,http://opendatacommunities.org/def/concept/finance/sercop/objective/104,INTELLIGENT DATA SYSTEMS (UK) LTD,5148878,42051,47179,114.25,0,IDS checks for Taxi Drivers,Highway Equipment & Materials,230000
South Lakeland District Council,http://opendatacommunities.org/id/district-council/south-lakeland,28/02/2015,Development Implementation,External Trading Accounts,,NEWSQUEST (NORTH WEST) LTD,3102566,42051,47180,41.6,0,Advert for SLDC - Ref: AC3229741,Facilities & Management Services,190000
South Lakeland District Council,http://opendatacommunities.org/id/district-council/south-lakeland,28/02/2015,Development Implementation,External Trading Accounts,,NEWSQUEST (NORTH WEST) LTD,3102566,42051,47181,44,0,Advert for SLDC - Ref: AC3229749,Facilities & Management Services,190000
South Lakeland District Council,http://opendatacommunities.org/id/district-council/south-lakeland,28/02/2015,Development Implementation,Central Services,http://opendatacommunities.org/def/concept/finance/sercop/objective/102,NPS GROUP LTD,6614601,42051,47182,38333.33,0,Professional Property Services for,"Works - Construction, Repair & Maintenance",390000
South Lakeland District Council,http://opendatacommunities.org/id/district-council/south-lakeland,28/02/2015,Development Implementation,Cultural Environmental Regulatory & Planning Services,http://opendatacommunities.org/def/concept/finance/sercop/objective/104,LMcG,,42051,47183,1500,0,Shop Front Grant for 45 Allhallows Lane.,Environmental Services,180000
South Lakeland District Council,http://opendatacommunities.org/id/district-council/south-lakeland,28/02/2015,Financial Services,SLDC as Agent,,LAKELAND ESTATES (AMBLESIDE) LTD,3022544,42051,47184,4104.4,0,14/15 Millerfield Car Park Income,Financial Services,200000
South Lakeland District Council,http://opendatacommunities.org/id/district-council/south-lakeland,28/02/2015,Financial Services,SLDC as Agent,,KIRKLAND TRUST (KENDAL),,42051,47185,3258.05,0,14/15 Kirkland Car Park Income,Financial Services,200000
South Lakeland District Council,http://opendatacommunities.org/id/district-council/south-lakeland,28/02/2015,Coronation Hall,External Trading Accounts,,Morson International,,42051,47186,59.64,0,Ulverston Market Hall cleaner from April,Consultancy,150000
South Lakeland District Council,http://opendatacommunities.org/id/district-council/south-lakeland,28/02/2015,Coronation Hall,External Trading Accounts,,Morson International,,42051,47187,99.4,0,Ulverston Market Hall cleaner from April,Consultancy,150000
South Lakeland District Council,http://opendatacommunities.org/id/district-council/south-lakeland,28/02/2015,Kendal Town Hall,Cultural Environmental Regulatory & Planning Services,http://opendatacommunities.org/def/concept/finance/sercop/objective/104,THE PERFORMING RIGHTS SOCIETY,,42060,47188,910.38,0,Estimated performing rights fee ,Arts & Leisure Services,290000
South Lakeland District Council,http://opendatacommunities.org/id/district-council/south-lakeland,28/02/2015,Business Support Community Services,Internal Trading Accounts,,RIBBLESDALE AUTO ELECTRICS 1992 LTD,2732686,42051,47189,55,0,Lamps,Vehicle Management,380000
South Lakeland District Council,http://opendatacommunities.org/id/district-council/south-lakeland,28/02/2015,Business Support Community Services,Internal Trading Accounts,,RIBBLESDALE AUTO ELECTRICS 1992 LTD,2732686,42051,47190,172.8,0,Lamps,Vehicle Management,380000
South Lakeland District Council,http://opendatacommunities.org/id/district-council/south-lakeland,28/02/2015,Business Support Community Services,Internal Trading Accounts,,RIBBLESDALE AUTO ELECTRICS 1992 LTD,2732686,42051,47191,22.64,0,Lamps,Vehicle Management,380000
South Lakeland District Council,http://opendatacommunities.org/id/district-council/south-lakeland,28/02/2015,Business Support Community Services,Internal Trading Accounts,,SOLWAY DAF,1393710,42051,47192,70.55,0,Hose,Vehicle Management,380000
South Lakeland District Council,http://opendatacommunities.org/id/district-council/south-lakeland,28/02/2015,Business Support Community Services,Internal Trading Accounts,,SOLWAY DAF,1393710,42051,47193,63.68,0,Hose,Vehicle Management,380000
South Lakeland District Council,http://opendatacommunities.org/id/district-council/south-lakeland,28/02/2015,Business Support Community Services,Internal Trading Accounts,,SOLWAY DAF,1393710,42051,47194,116.83,0,Hose,Vehicle Management,380000
South Lakeland District Council,http://opendatacommunities.org/id/district-council/south-lakeland,28/02/2015,Business Support Community Services,Internal Trading Accounts,,SOLWAY DAF,1393710,42051,47195,11.99,0,Hose,Vehicle Management,380000
South Lakeland District Council,http://opendatacommunities.org/id/district-council/south-lakeland,28/02/2015,Business Support Community Services,Internal Trading Accounts,,SOLWAY DAF,1393710,42051,47196,22.07,0,Hose,Vehicle Management,380000
South Lakeland District Council,http://opendatacommunities.org/id/district-council/south-lakeland,28/02/2015,Business Support Community Services,Internal Trading Accounts,,RIBBLESDALE AUTO ELECTRICS 1992 LTD,2732686,42051,47197,62.8,0,Lamps,Vehicle Management,380000
South Lakeland District Council,http://opendatacommunities.org/id/district-council/south-lakeland,28/02/2015,Business Support Community Services,Internal Trading Accounts,,SOLWAY DAF,1393710,42051,47198,39.86,0,Hose,Vehicle Management,380000
South Lakeland District Council,http://opendatacommunities.org/id/district-council/south-lakeland,28/02/2015,Business Support Community Services,Internal Trading Accounts,,SOLWAY DAF,1393710,42051,47199,1.89,0,Hose,Vehicle Management,380000
South Lakeland District Council,http://opendatacommunities.org/id/district-council/south-lakeland,28/02/2015,Business Support Community Services,Internal Trading Accounts,,TECHNIJET LTD,2776601,42051,47200,157.7,0,Repair Ulverston pressure washer,Furniture & Soft Furnishings,210000
South Lakeland District Council,http://opendatacommunities.org/id/district-council/south-lakeland,28/02/2015,Business Support Community Services,Internal Trading Accounts,,TAYLOR ENGINEERING & FABRICATIONS LTD,4989359,42051,47201,37.81,0,Loom,Vehicle Management,380000
South Lakeland District Council,http://opendatacommunities.org/id/district-council/south-lakeland,28/02/2015,Legal Services,Cultural Environmental Regulatory & Planning Services,http://opendatacommunities.org/def/concept/finance/sercop/objective/104,W MCCLURE LTD,685360,42051,47202,58.6,0,4 x boxes Foxes favourites biscuits,Catering,110000
South Lakeland District Council,http://opendatacommunities.org/id/district-council/south-lakeland,28/02/2015,Revenues and Benefits,Central Services,http://opendatacommunities.org/def/concept/finance/sercop/objective/102,VENN GROUP RECRUITMENT SOLUTIONS,,42051,47208,869.5,0,Recruitment,Consultancy,150000
South Lakeland District Council,http://opendatacommunities.org/id/district-council/south-lakeland,28/02/2015,Revenues and Benefits,Central Services,http://opendatacommunities.org/def/concept/finance/sercop/objective/102,VENN GROUP RECRUITMENT SOLUTIONS,,42051,47209,869.5,0,Recruitment,Consultancy,150000
South Lakeland District Council,http://opendatacommunities.org/id/district-council/south-lakeland,28/02/2015,Revenues and Benefits,Central Services,http://opendatacommunities.org/def/concept/finance/sercop/objective/102,VENN GROUP RECRUITMENT SOLUTIONS,,42051,47210,869.5,0,Recruitment,Consultancy,150000
South Lakeland District Council,http://opendatacommunities.org/id/district-council/south-lakeland,28/02/2015,Business Support Community Services,Cultural Environmental Regulatory & Planning Services,http://opendatacommunities.org/def/concept/finance/sercop/objective/104,ALLSTAR BUSINESS SOLUTIONS LTD (NCR),2631112,42062,47212,33.72,0,Fuel - Private Water Van - 8 January,Environmental Services,180000
South Lakeland District Council,http://opendatacommunities.org/id/district-council/south-lakeland,28/02/2015,Business Support Community Services,Housing Services,http://opendatacommunities.org/def/concept/finance/sercop/objective/108,Karen Ashton,,42051,47213,1100,0,Community care and Accommodation,Social Community Care Supplies & Services,410000
South Lakeland District Council,http://opendatacommunities.org/id/district-council/south-lakeland,28/02/2015,Development Implementation,Central Services,http://opendatacommunities.org/def/concept/finance/sercop/objective/102,Sundog Energy Ltd,4272657,42051,47217,750,0,Tender Advice,Information Communication Technology,270000
South Lakeland District Council,http://opendatacommunities.org/id/district-council/south-lakeland,28/02/2015,Development Strategy,Cultural Environmental Regulatory & Planning Services,http://opendatacommunities.org/def/concept/finance/sercop/objective/104,NEWSQUEST (NORTH WEST) LTD,3102566,42053,47221,149,0,Public notice in Westmorland Gazette on,Facilities & Management Services,190000
South Lakeland District Council,http://opendatacommunities.org/id/district-council/south-lakeland,28/02/2015,Business Support Community Services,Internal Trading Accounts,,AUTOKONTROL LIMITED,,42053,47223,33,0,Elbows,Vehicle Management,380000
South Lakeland District Council,http://opendatacommunities.org/id/district-council/south-lakeland,28/02/2015,Business Support Community Services,Cultural Environmental Regulatory & Planning Services,http://opendatacommunities.org/def/concept/finance/sercop/objective/104,MANCHESTER CAMERATA LTD,1128463,42051,47224,14500,0,Strategic Community Arts & Events Y2,Financial Services,200000
South Lakeland District Council,http://opendatacommunities.org/id/district-council/south-lakeland,28/02/2015,Social Enterprise Admin,Cultural Environmental Regulatory & Planning Services,http://opendatacommunities.org/def/concept/finance/sercop/objective/104,Matchtech,2526418,42058,47225,1068.19,0,TO SUPPLY DEVELOPMENT CONTROL TEAM,Consultancy,150000
South Lakeland District Council,http://opendatacommunities.org/id/district-council/south-lakeland,28/02/2015,Social Enterprise Admin,Cultural Environmental Regulatory & Planning Services,http://opendatacommunities.org/def/concept/finance/sercop/objective/104,NPS GROUP LTD,6614601,42058,47226,2652.5,0,Design works associated with Windermere,"Works - Construction, Repair & Maintenance",390000
South Lakeland District Council,http://opendatacommunities.org/id/district-council/south-lakeland,28/02/2015,Coronation Hall,External Trading Accounts,,Morson International,,42053,47227,119.28,0,Ulverston Market Hall cleaner from April,Consultancy,150000
South Lakeland District Council,http://opendatacommunities.org/id/district-council/south-lakeland,28/02/2015,Revenues and Benefits,SLDC as Agent,,ROYAL MAIL GROUP PLC,,42051,47228,1310.75,0,2014-15  Postal Charges a/c 0198123013,Financial Services,200000
South Lakeland District Council,http://opendatacommunities.org/id/district-council/south-lakeland,28/02/2015,Revenues and Benefits,Central Services,http://opendatacommunities.org/def/concept/finance/sercop/objective/102,MERITEC LTD,3224622,42051,47229,418.5,0,RAB Processing Contract and Agency,Consultancy,150000
South Lakeland District Council,http://opendatacommunities.org/id/district-council/south-lakeland,28/02/2015,Revenues and Benefits,Central Services,http://opendatacommunities.org/def/concept/finance/sercop/objective/102,JACOBS,,42051,47230,75,0,2014-15  Vat,Financial Services,200000
South Lakeland District Council,http://opendatacommunities.org/id/district-council/south-lakeland,28/02/2015,Business Support Community Services,Internal Trading Accounts,,SITA UK LTD,2291198,42053,47234,7524.51,0,"Tipping & disposal charges, recyclables",Environmental Services,180000
South Lakeland District Council,http://opendatacommunities.org/id/district-council/south-lakeland,28/02/2015,Business Support Community Services,Internal Trading Accounts,,Masterstaff Limited,2777593,42051,47235,799.2,0,Consultancy,Consultancy,150000
South Lakeland District Council,http://opendatacommunities.org/id/district-council/south-lakeland,28/02/2015,Business Support Community Services,Internal Trading Accounts,,Masterstaff Limited,2777593,42051,47236,237.6,0,Consultancy,Consultancy,150000
South Lakeland District Council,http://opendatacommunities.org/id/district-council/south-lakeland,28/02/2015,Business Support Community Services,Internal Trading Accounts,,STAGECOACH NORTHWEST,,42051,47237,50,0,Steam cleaning 01/04/14 - 31/03/15,Vehicle Management,380000
South Lakeland District Council,http://opendatacommunities.org/id/district-council/south-lakeland,28/02/2015,Business Support Community Services,Internal Trading Accounts,,LANCASTER TRAINING SERVICES LTD,1447612,42051,47238,44.17,0,Operator training,Education,170000
South Lakeland District Council,http://opendatacommunities.org/id/district-council/south-lakeland,28/02/2015,Business Support Community Services,Internal Trading Accounts,,LANCASTER TRAINING SERVICES LTD,1447612,42051,47238,485.83,0,Operator training,Education,170000
South Lakeland District Council,http://opendatacommunities.org/id/district-council/south-lakeland,28/02/2015,Business Support Community Services,Cultural Environmental Regulatory & Planning Services,http://opendatacommunities.org/def/concept/finance/sercop/objective/104,ARCO LIMITED,133804,42051,47239,14.9,0,Polish,Furniture & Soft Furnishings,210000
South Lakeland District Council,http://opendatacommunities.org/id/district-council/south-lakeland,28/02/2015,Business Support Community Services,Internal Trading Accounts,,ARCO LIMITED,133804,42051,47239,28.72,0,Polish,Furniture & Soft Furnishings,210000
South Lakeland District Council,http://opendatacommunities.org/id/district-council/south-lakeland,28/02/2015,Business Support Community Services,Internal Trading Accounts,,ARCO LIMITED,133804,42051,47239,7.02,0,Polish,Cleaning & Janitorial,130000
South Lakeland District Council,http://opendatacommunities.org/id/district-council/south-lakeland,28/02/2015,Business Support Community Services,Internal Trading Accounts,,ARCO LIMITED,133804,42051,47239,129.94,0,Polish,Clothing,140000
South Lakeland District Council,http://opendatacommunities.org/id/district-council/south-lakeland,28/02/2015,Business Support Community Services,Internal Trading Accounts,,ARCO LIMITED,133804,42053,47240,13.95,0,Polish,Clothing,140000
South Lakeland District Council,http://opendatacommunities.org/id/district-council/south-lakeland,28/02/2015,Business Support Community Services,Internal Trading Accounts,,ARCO LIMITED,133804,42051,47241,7.18,0,Polish,Clothing,140000
South Lakeland District Council,http://opendatacommunities.org/id/district-council/south-lakeland,28/02/2015,Business Support Community Services,Internal Trading Accounts,,SETON,4065947,42051,47242,99.15,0,FAD298: 1 litre sharps disposal boxes,Furniture & Soft Furnishings,210000
South Lakeland District Council,http://opendatacommunities.org/id/district-council/south-lakeland,28/02/2015,Policy & Partnerships,Cultural Environmental Regulatory & Planning Services,http://opendatacommunities.org/def/concept/finance/sercop/objective/104,Lunesdale Hall,,42053,47244,30,0,Sedbergh and Kikrby Lonsdale Hall Hire,Arts & Leisure Services,290000
South Lakeland District Council,http://opendatacommunities.org/id/district-council/south-lakeland,28/02/2015,Environmental Protection,Cultural Environmental Regulatory & Planning Services,http://opendatacommunities.org/def/concept/finance/sercop/objective/104,CUMBRIA WASTE RECYCLING LTD,3162439,42058,47245,94.16,0,"Cemeteries Bin Emptying Jan,Feb,March",Environmental Services,180000
South Lakeland District Council,http://opendatacommunities.org/id/district-council/south-lakeland,28/02/2015,Environmental Protection,Cultural Environmental Regulatory & Planning Services,http://opendatacommunities.org/def/concept/finance/sercop/objective/104,CUMBRIA WASTE RECYCLING LTD,3162439,42058,47246,46.03,0,"Cemeteries Bin Emptying Jan,Feb,March",Environmental Services,180000
South Lakeland District Council,http://opendatacommunities.org/id/district-council/south-lakeland,28/02/2015,Environmental Protection,Cultural Environmental Regulatory & Planning Services,http://opendatacommunities.org/def/concept/finance/sercop/objective/104,CUMBRIA WASTE RECYCLING LTD,3162439,42058,47247,56.03,0,"Cemeteries Bin Emptying Jan,Feb,March",Environmental Services,180000
South Lakeland District Council,http://opendatacommunities.org/id/district-council/south-lakeland,28/02/2015,Coronation Hall,Cultural Environmental Regulatory & Planning Services,http://opendatacommunities.org/def/concept/finance/sercop/objective/104,CUMBRIA WASTE RECYCLING LTD,3162439,42058,47248,85.87,0,"Emptying of skips from Coronation Hall,",Environmental Services,180000
South Lakeland District Council,http://opendatacommunities.org/id/district-council/south-lakeland,28/02/2015,Environmental Protection,Cultural Environmental Regulatory & Planning Services,http://opendatacommunities.org/def/concept/finance/sercop/objective/104,CUMBRIA WASTE RECYCLING LTD,3162439,42058,47249,70.7,0,"Cemeteries Bin Emptying Jan,Feb,March",Environmental Services,180000
South Lakeland District Council,http://opendatacommunities.org/id/district-council/south-lakeland,28/02/2015,Coronation Hall,External Trading Accounts,,CUMBRIA WASTE RECYCLING LTD,3162439,42058,47251,443.28,0,"Emptying of skips from Market Hall,",Environmental Services,180000
South Lakeland District Council,http://opendatacommunities.org/id/district-council/south-lakeland,28/02/2015,Environmental Protection,Cultural Environmental Regulatory & Planning Services,http://opendatacommunities.org/def/concept/finance/sercop/objective/104,CUMBRIA WASTE RECYCLING LTD,3162439,42058,47252,75.84,0,"Cemeteries Bin Emptying Jan,Feb,March",Environmental Services,180000
South Lakeland District Council,http://opendatacommunities.org/id/district-council/south-lakeland,28/02/2015,Kendal Town Hall,Cultural Environmental Regulatory & Planning Services,http://opendatacommunities.org/def/concept/finance/sercop/objective/104,CUMBRIA WASTE RECYCLING LTD,3162439,42060,47254,149.25,0,Weekly collection of the bins at Kendal,Environmental Services,180000
South Lakeland District Council,http://opendatacommunities.org/id/district-council/south-lakeland,28/02/2015,Environmental Protection,Cultural Environmental Regulatory & Planning Services,http://opendatacommunities.org/def/concept/finance/sercop/objective/104,CUMBRIA WASTE RECYCLING LTD,3162439,42058,47256,30.85,0,"Cemeteries Bin Emptying Jan,Feb,March",Environmental Services,180000
South Lakeland District Council,http://opendatacommunities.org/id/district-council/south-lakeland,28/02/2015,Environmental Protection,Cultural Environmental Regulatory & Planning Services,http://opendatacommunities.org/def/concept/finance/sercop/objective/104,CUMBRIA WASTE RECYCLING LTD,3162439,42058,47258,35.35,0,"Cemeteries Bin Emptying Jan,Feb,March",Environmental Services,180000
South Lakeland District Council,http://opendatacommunities.org/id/district-council/south-lakeland,28/02/2015,Lake Wardens,Cultural Environmental Regulatory & Planning Services,http://opendatacommunities.org/def/concept/finance/sercop/objective/104,CUMBRIA WASTE RECYCLING LTD,3162439,42060,47259,19.76,0,Monthly Emptying of Refuse Wheelie Bins,Environmental Services,180000
South Lakeland District Council,http://opendatacommunities.org/id/district-council/south-lakeland,28/02/2015,Business Support Community Services,Central Services,http://opendatacommunities.org/def/concept/finance/sercop/objective/102,CIVICA UK LTD,1628868,42058,47260,19609.83,0,"CGPM005014 2015 -16 Licence, Support &",Information Communication Technology,270000
South Lakeland District Council,http://opendatacommunities.org/id/district-council/south-lakeland,28/02/2015,Social Enterprise Admin,Cultural Environmental Regulatory & Planning Services,http://opendatacommunities.org/def/concept/finance/sercop/objective/104,NEWSQUEST (NORTH WEST) LTD,3102566,42053,47261,185,0,PUBLIC NOTICES FOR PLANNIG DEPARTMENT.,Facilities & Management Services,190000
South Lakeland District Council,http://opendatacommunities.org/id/district-council/south-lakeland,28/02/2015,Business Support Community Services,Internal Trading Accounts,,ARCO LIMITED,133804,42058,47262,13.95,0,Polish,Clothing,140000
South Lakeland District Council,http://opendatacommunities.org/id/district-council/south-lakeland,28/02/2015,Customer Services,Central Services,http://opendatacommunities.org/def/concept/finance/sercop/objective/102,SHRED-IT,4047194,42060,47263,245.99,0,Removal of confidential waste from South,Stationery,340000
South Lakeland District Council,http://opendatacommunities.org/id/district-council/south-lakeland,28/02/2015,Lake Wardens,Cultural Environmental Regulatory & Planning Services,http://opendatacommunities.org/def/concept/finance/sercop/objective/104,RS COMPONENTS LTD,1002091,42053,47264,69.75,0,4 x 1 metre Ethernet Cable,Vehicle Management,380000
South Lakeland District Council,http://opendatacommunities.org/id/district-council/south-lakeland,28/02/2015,Lake Wardens,Cultural Environmental Regulatory & Planning Services,http://opendatacommunities.org/def/concept/finance/sercop/objective/104,RS COMPONENTS LTD,1002091,42053,47264,26.79,0,4 x 1 metre Ethernet Cable,Furniture & Soft Furnishings,210000
South Lakeland District Council,http://opendatacommunities.org/id/district-council/south-lakeland,28/02/2015,Business Support Community Services,Internal Trading Accounts,,TRAVIS PERKINS TRADING CO LTD,733503,42058,47265,357,0,Board,Vehicle Management,380000
South Lakeland District Council,http://opendatacommunities.org/id/district-council/south-lakeland,28/02/2015,Development Management,Cultural Environmental Regulatory & Planning Services,http://opendatacommunities.org/def/concept/finance/sercop/objective/104,SALFORD CITY COUNCIL,,42058,47266,318.86,0,Checking Building regulation application,Facilities & Management Services,190000
South Lakeland District Council,http://opendatacommunities.org/id/district-council/south-lakeland,28/02/2015,Legal Services,Central Services,http://opendatacommunities.org/def/concept/finance/sercop/objective/102,NO 5 CHAMBERS,2727465,42053,47267,483.33,0,Fees re: Hashi Mohamed  advising in,Legal Services,280000
South Lakeland District Council,http://opendatacommunities.org/id/district-council/south-lakeland,28/02/2015,Revenues and Benefits,Central Services,http://opendatacommunities.org/def/concept/finance/sercop/objective/102,BADENOCH & CLARK,1356186,42053,47268,533.4,0,Revs and Bens,Consultancy,150000
South Lakeland District Council,http://opendatacommunities.org/id/district-council/south-lakeland,28/02/2015,Development Implementation,Cultural Environmental Regulatory & Planning Services,http://opendatacommunities.org/def/concept/finance/sercop/objective/104,PS BUSINESS MATTERS,8147185,42053,47272,2000,0,Kendal Futures Programme Support,Consultancy,150000
South Lakeland District Council,http://opendatacommunities.org/id/district-council/south-lakeland,28/02/2015,Legal Services,Cultural Environmental Regulatory & Planning Services,http://opendatacommunities.org/def/concept/finance/sercop/objective/104,HYGIENE CLEANING SUPPLIES LTD,4753934,42053,47273,170.73,0,"T623W 5 x 17"" White Floor Pads",Cleaning & Janitorial,130000
South Lakeland District Council,http://opendatacommunities.org/id/district-council/south-lakeland,28/02/2015,Business Support Community Services,Internal Trading Accounts,,ARCO LIMITED,133804,42053,47276,11.64,0,Eez wipes,Furniture & Soft Furnishings,210000
South Lakeland District Council,http://opendatacommunities.org/id/district-council/south-lakeland,28/02/2015,Business Support Community Services,Internal Trading Accounts,,EK MOTOR FACTORS LTD,838524,42053,47277,17.59,0,Brake pads,Vehicle Management,380000
South Lakeland District Council,http://opendatacommunities.org/id/district-council/south-lakeland,28/02/2015,Business Support Community Services,Internal Trading Accounts,,EK MOTOR FACTORS LTD,838524,42053,47278,12.69,0,Brake pads,Vehicle Management,380000
South Lakeland District Council,http://opendatacommunities.org/id/district-council/south-lakeland,28/02/2015,Business Support Community Services,Internal Trading Accounts,,EK MOTOR FACTORS LTD,838524,42053,47279,3.06,0,Brake pads,Vehicle Management,380000
South Lakeland District Council,http://opendatacommunities.org/id/district-council/south-lakeland,28/02/2015,Business Support Community Services,Internal Trading Accounts,,EK MOTOR FACTORS LTD,838524,42053,47280,33.9,0,Brake pads,Vehicle Management,380000
South Lakeland District Council,http://opendatacommunities.org/id/district-council/south-lakeland,28/02/2015,Business Support Community Services,Internal Trading Accounts,,EK MOTOR FACTORS LTD,838524,42053,47281,36.32,0,Brake pads,Vehicle Management,380000
South Lakeland District Council,http://opendatacommunities.org/id/district-council/south-lakeland,28/02/2015,Business Support Community Services,Internal Trading Accounts,,EK MOTOR FACTORS LTD,838524,42053,47282,64.03,0,Brake pads,Vehicle Management,380000
South Lakeland District Council,http://opendatacommunities.org/id/district-council/south-lakeland,28/02/2015,Business Support Community Services,Internal Trading Accounts,,EK MOTOR FACTORS LTD,838524,42053,47283,1.62,0,Brake pads,Vehicle Management,380000
South Lakeland District Council,http://opendatacommunities.org/id/district-council/south-lakeland,28/02/2015,Business Support Community Services,Internal Trading Accounts,,EK MOTOR FACTORS LTD,838524,42053,47284,94.06,0,Brake pads,Vehicle Management,380000
South Lakeland District Council,http://opendatacommunities.org/id/district-council/south-lakeland,28/02/2015,Business Support Community Services,Internal Trading Accounts,,EK MOTOR FACTORS LTD,838524,42053,47285,188.12,0,Brake pads,Vehicle Management,380000
South Lakeland District Council,http://opendatacommunities.org/id/district-council/south-lakeland,28/02/2015,Business Support Community Services,Internal Trading Accounts,,EK MOTOR FACTORS LTD,838524,42053,47286,-20,0,Brake pads,Vehicle Management,380000
South Lakeland District Council,http://opendatacommunities.org/id/district-council/south-lakeland,28/02/2015,Business Support Community Services,Internal Trading Accounts,,EK MOTOR FACTORS LTD,838524,42053,47287,94.06,0,Brake pads,Vehicle Management,380000
South Lakeland District Council,http://opendatacommunities.org/id/district-council/south-lakeland,28/02/2015,Business Support Community Services,Internal Trading Accounts,,EK MOTOR FACTORS LTD,838524,42053,47288,-208.12,0,Brake pads,Vehicle Management,380000
South Lakeland District Council,http://opendatacommunities.org/id/district-council/south-lakeland,28/02/2015,Business Support Community Services,Internal Trading Accounts,,EK MOTOR FACTORS LTD,838524,42053,47289,11.74,0,Brake pads,Vehicle Management,380000
South Lakeland District Council,http://opendatacommunities.org/id/district-council/south-lakeland,28/02/2015,Business Support Community Services,Internal Trading Accounts,,DENNIS EAGLE LTD,3794455,42053,47290,79.51,0,Link rod,Vehicle Management,380000
South Lakeland District Council,http://opendatacommunities.org/id/district-council/south-lakeland,28/02/2015,Business Support Community Services,Internal Trading Accounts,,DENNIS EAGLE LTD,3794455,42053,47291,553.64,0,Link rod,Vehicle Management,380000
South Lakeland District Council,http://opendatacommunities.org/id/district-council/south-lakeland,28/02/2015,Business Support Community Services,Internal Trading Accounts,,DENNIS EAGLE LTD,3794455,42053,47292,14.62,0,Link rod,Vehicle Management,380000
South Lakeland District Council,http://opendatacommunities.org/id/district-council/south-lakeland,28/02/2015,Business Support Community Services,Internal Trading Accounts,,DENNIS EAGLE LTD,3794455,42053,47293,154.71,0,Link rod,Vehicle Management,380000
South Lakeland District Council,http://opendatacommunities.org/id/district-council/south-lakeland,28/02/2015,Business Support Community Services,Internal Trading Accounts,,DENNIS EAGLE LTD,3794455,42053,47294,20.76,0,Link rod,Vehicle Management,380000
South Lakeland District Council,http://opendatacommunities.org/id/district-council/south-lakeland,28/02/2015,Business Support Community Services,Internal Trading Accounts,,DENNIS EAGLE LTD,3794455,42053,47295,276.82,0,Link rod,Vehicle Management,380000
South Lakeland District Council,http://opendatacommunities.org/id/district-council/south-lakeland,28/02/2015,Business Support Community Services,Cultural Environmental Regulatory & Planning Services,http://opendatacommunities.org/def/concept/finance/sercop/objective/104,CUMBRIA WASTE RECYCLING LTD,3162439,42053,47296,12850.63,0,Empty recycling banks in April,Environmental Services,180000
South Lakeland District Council,http://opendatacommunities.org/id/district-council/south-lakeland,28/02/2015,Business Support Community Services,Internal Trading Accounts,,JOHNSTON SWEEPERS LTD,199841,42053,47297,202.76,0,Switch,Vehicle Management,380000
South Lakeland District Council,http://opendatacommunities.org/id/district-council/south-lakeland,28/02/2015,Business Support Community Services,Internal Trading Accounts,,PROBRUSH T/A NORTHERN MUNICIPAL SPARES L,,42053,47299,1527.04,0,Brushes,Vehicle Management,380000
South Lakeland District Council,http://opendatacommunities.org/id/district-council/south-lakeland,28/02/2015,Legal Services,Central Services,http://opendatacommunities.org/def/concept/finance/sercop/objective/102,FORRESTERS SOLICITORS,6503747,42053,47301,112.5,0,Fees in respect of attendance at Barrow,Legal Services,280000
South Lakeland District Council,http://opendatacommunities.org/id/district-council/south-lakeland,28/02/2015,Business Support Community Services,Internal Trading Accounts,,ARCO LIMITED,133804,42058,47303,59.43,0,Trainers -,Clothing,140000
South Lakeland District Council,http://opendatacommunities.org/id/district-council/south-lakeland,28/02/2015,Business Support Community Services,Cultural Environmental Regulatory & Planning Services,http://opendatacommunities.org/def/concept/finance/sercop/objective/104,ARCO LIMITED,133804,42058,47304,87.2,0,Public Protection Equipment - Jacket,Environmental Services,180000
South Lakeland District Council,http://opendatacommunities.org/id/district-council/south-lakeland,28/02/2015,Printing Section,Central Services,http://opendatacommunities.org/def/concept/finance/sercop/objective/102,ROSEFOX PAPER LIMITED,1655083,42060,47307,53.85,0,A4 80gsm Gold for Lake Wardens,Stationery,340000
South Lakeland District Council,http://opendatacommunities.org/id/district-council/south-lakeland,28/02/2015,Legal Services,Cultural Environmental Regulatory & Planning Services,http://opendatacommunities.org/def/concept/finance/sercop/objective/104,FURNESS NEWSPAPERS LTD,1155841,42053,47308,714.84,0,'BID for Ulverston' advert to appear in,Facilities & Management Services,190000
South Lakeland District Council,http://opendatacommunities.org/id/district-council/south-lakeland,28/02/2015,Business Support Community Services,Cultural Environmental Regulatory & Planning Services,http://opendatacommunities.org/def/concept/finance/sercop/objective/104,M. J. FIELDING,,42053,47309,323.19,0,23/01/15 Inspection of Cheetahs at,Healthcare,310000
South Lakeland District Council,http://opendatacommunities.org/id/district-council/south-lakeland,28/02/2015,Revenues and Benefits,Central Services,http://opendatacommunities.org/def/concept/finance/sercop/objective/102,VENN GROUP RECRUITMENT SOLUTIONS,,42053,47311,869.5,0,Recruitment,Consultancy,150000
South Lakeland District Council,http://opendatacommunities.org/id/district-council/south-lakeland,28/02/2015,Printing Section,Central Services,http://opendatacommunities.org/def/concept/finance/sercop/objective/102,SUPPLIES TEAM,5510758,42053,47312,104.79,0,Brother high yield ink for Health,Stationery,340000
South Lakeland District Council,http://opendatacommunities.org/id/district-council/south-lakeland,28/02/2015,Business Support Community Services,Housing Services,http://opendatacommunities.org/def/concept/finance/sercop/objective/108,Landlord,,42053,47316,1190,0,Monthly rent ,Social Community Care Supplies & Services,410000
South Lakeland District Council,http://opendatacommunities.org/id/district-council/south-lakeland,28/02/2015,Business Support Community Services,Housing Services,http://opendatacommunities.org/def/concept/finance/sercop/objective/108,Landlord,,42053,47317,890,0,Monthly rent ,Social Community Care Supplies & Services,410000
South Lakeland District Council,http://opendatacommunities.org/id/district-council/south-lakeland,28/02/2015,Business Support Community Services,Housing Services,http://opendatacommunities.org/def/concept/finance/sercop/objective/108,Landlord,8672920,42053,47318,400,0,Monthly rent ,Social Community Care Supplies & Services,410000
South Lakeland District Council,http://opendatacommunities.org/id/district-council/south-lakeland,28/02/2015,Human Resources,Central Services,http://opendatacommunities.org/def/concept/finance/sercop/objective/102,ANITA OGILVIE,,42053,47319,54,0,Theraputic sessions,Healthcare,310000
South Lakeland District Council,http://opendatacommunities.org/id/district-council/south-lakeland,28/02/2015,Human Resources,Central Services,http://opendatacommunities.org/def/concept/finance/sercop/objective/102,FORBES SOLICITORS,,42053,47321,130,0,general legal advice,Stationery,340000
South Lakeland District Council,http://opendatacommunities.org/id/district-council/south-lakeland,28/02/2015,Human Resources,Central Services,http://opendatacommunities.org/def/concept/finance/sercop/objective/102,FORBES SOLICITORS,,42053,47322,572,0,general legal advice,Stationery,340000
South Lakeland District Council,http://opendatacommunities.org/id/district-council/south-lakeland,28/02/2015,Development Strategy,Central Services,http://opendatacommunities.org/def/concept/finance/sercop/objective/102,RTPI SUBSCRIPTIONS,,42053,47323,290,0,RTPI subscription for 2015,Financial Services,200000
South Lakeland District Council,http://opendatacommunities.org/id/district-council/south-lakeland,28/02/2015,Financial Services,Central Services,http://opendatacommunities.org/def/concept/finance/sercop/objective/102,SOCIETY OF DISTRICT COUNCIL TREASURERS,,42053,47325,200,0,Annual Subs 14/15 SDCT,Financial Services,200000
South Lakeland District Council,http://opendatacommunities.org/id/district-council/south-lakeland,28/02/2015,Business Support Community Services,Housing Services,http://opendatacommunities.org/def/concept/finance/sercop/objective/108,Landlord,,42053,47326,520,0,Monthly rent ,Social Community Care Supplies & Services,410000
South Lakeland District Council,http://opendatacommunities.org/id/district-council/south-lakeland,28/02/2015,Human Resources,Central Services,http://opendatacommunities.org/def/concept/finance/sercop/objective/102,EMPLOYMENT PAGES LTD,7363099,42053,47327,275.4,0,Job advertisement Hostel Support,Human Resources,260000
South Lakeland District Council,http://opendatacommunities.org/id/district-council/south-lakeland,28/02/2015,Business Support Community Services,Housing Services,http://opendatacommunities.org/def/concept/finance/sercop/objective/108,James Andrews Recruitment Solutions,6834852,42058,47328,887.5,0,Payment,Consultancy,150000
South Lakeland District Council,http://opendatacommunities.org/id/district-council/south-lakeland,28/02/2015,Lake Wardens,Cultural Environmental Regulatory & Planning Services,http://opendatacommunities.org/def/concept/finance/sercop/objective/104,RICKERBY LTD,4985069,42053,47329,36.43,0,2 x Oil Filters,Vehicle Management,380000
South Lakeland District Council,http://opendatacommunities.org/id/district-council/south-lakeland,28/02/2015,Business Support Community Services,Internal Trading Accounts,,BRIAN ARMISTEAD LTD T/A SINKFALL RECYCLI,4133280,42058,47331,520.4,0,Green waste tipping - April (estimated),Environmental Services,180000
South Lakeland District Council,http://opendatacommunities.org/id/district-council/south-lakeland,28/02/2015,Business Support Community Services,Internal Trading Accounts,,ARCO LIMITED,133804,42058,47332,33.2,0,Trainers - ,Furniture & Soft Furnishings,210000
South Lakeland District Council,http://opendatacommunities.org/id/district-council/south-lakeland,28/02/2015,Business Support Community Services,Internal Trading Accounts,,ARCO LIMITED,133804,42058,47334,70.46,0,Trays,Furniture & Soft Furnishings,210000
South Lakeland District Council,http://opendatacommunities.org/id/district-council/south-lakeland,28/02/2015,Lake Wardens,Cultural Environmental Regulatory & Planning Services,http://opendatacommunities.org/def/concept/finance/sercop/objective/104,W'MERE AMBLESIDE & DISTRICT ANGLING ASSO,,42053,47335,150,0,Supply of 2 x WADAA Fishing Permits for,Furniture & Soft Furnishings,210000
South Lakeland District Council,http://opendatacommunities.org/id/district-council/south-lakeland,28/02/2015,Lake Wardens,Cultural Environmental Regulatory & Planning Services,http://opendatacommunities.org/def/concept/finance/sercop/objective/104,LOGO PLUS,,42053,47336,449,0,Supply of Assorted 2015 Stickers as per,Stationery,340000
South Lakeland District Council,http://opendatacommunities.org/id/district-council/south-lakeland,28/02/2015,Lake Wardens,SLDC as Agent,,LAKE DISTRICT NATIONAL PARK AUTHORITY,,42060,47337,857.94,0,Monthly Invoices for 2014-2015 for Boat,Financial Services,200000
South Lakeland District Council,http://opendatacommunities.org/id/district-council/south-lakeland,28/02/2015,Social Enterprise Admin,Highways & Transport Services,http://opendatacommunities.org/def/concept/finance/sercop/objective/107,LIBERTY SERVICES,,42058,47339,215,0,5 x 1000 PCN Bags - S2466,Stationery,340000
South Lakeland District Council,http://opendatacommunities.org/id/district-council/south-lakeland,28/02/2015,Business Support Community Services,Internal Trading Accounts,,EK MOTOR FACTORS LTD,838524,42058,47340,5.95,0,Brake pads,Vehicle Management,380000
South Lakeland District Council,http://opendatacommunities.org/id/district-council/south-lakeland,28/02/2015,Business Support Community Services,Internal Trading Accounts,,EK MOTOR FACTORS LTD,838524,42058,47341,19.08,0,Brake pads,Vehicle Management,380000
South Lakeland District Council,http://opendatacommunities.org/id/district-council/south-lakeland,28/02/2015,Business Support Community Services,Internal Trading Accounts,,AUTOMOTIVE GLAZING SOLUTIONS,5922870,42058,47343,45,0,Repair windscreen,Vehicle Management,380000
South Lakeland District Council,http://opendatacommunities.org/id/district-council/south-lakeland,28/02/2015,Business Support Community Services,Internal Trading Accounts,,DENNIS EAGLE LTD,3794455,42058,47345,70.59,0,Link rod,Vehicle Management,380000
South Lakeland District Council,http://opendatacommunities.org/id/district-council/south-lakeland,28/02/2015,Business Support Community Services,Internal Trading Accounts,,SOLWAY DAF,1393710,42058,47346,287.51,0,Hose,Vehicle Management,380000
South Lakeland District Council,http://opendatacommunities.org/id/district-council/south-lakeland,28/02/2015,Business Support Community Services,Internal Trading Accounts,,RIBBLESDALE AUTO ELECTRICS 1992 LTD,2732686,42058,47347,35,0,Lamps,Vehicle Management,380000
South Lakeland District Council,http://opendatacommunities.org/id/district-council/south-lakeland,28/02/2015,Development Implementation,Cultural Environmental Regulatory & Planning Services,http://opendatacommunities.org/def/concept/finance/sercop/objective/104,SKV Communications,3495502,42058,47348,1181.25,0,Provision of PR/Marketing Support for,Environmental Services,180000
South Lakeland District Council,http://opendatacommunities.org/id/district-council/south-lakeland,28/02/2015,Financial Services,Highways & Transport Services,http://opendatacommunities.org/def/concept/finance/sercop/objective/107,ZURICH MUNICIPAL,,42058,47349,250,0,Ferry Nab Car Park Bullough. Insurance,Financial Services,200000
South Lakeland District Council,http://opendatacommunities.org/id/district-council/south-lakeland,28/02/2015,Social Enterprise Admin,Highways & Transport Services,http://opendatacommunities.org/def/concept/finance/sercop/objective/107,BEMROSE BOOTH PARAGON LTD,4891375,42058,47351,1120.08,0,"187,500 Aura self-adhesive pay and",Stationery,340000
South Lakeland District Council,http://opendatacommunities.org/id/district-council/south-lakeland,28/02/2015,Social Enterprise Admin,Highways & Transport Services,http://opendatacommunities.org/def/concept/finance/sercop/objective/107,MOUCHEL LTD,1686040,42058,47352,23.46,0,DVLA checks from 1 April 2014 to 31,Financial Services,200000
South Lakeland District Council,http://opendatacommunities.org/id/district-council/south-lakeland,28/02/2015,Development Implementation,Cultural Environmental Regulatory & Planning Services,http://opendatacommunities.org/def/concept/finance/sercop/objective/104,FINGER PRINTS,,42058,47354,717.58,0,Ulverston BID Brochure - 750 copies;,Environmental Services,180000
South Lakeland District Council,http://opendatacommunities.org/id/district-council/south-lakeland,28/02/2015,Social Enterprise Admin,Central Services,http://opendatacommunities.org/def/concept/finance/sercop/objective/102,CUMBRIA WASTE RECYCLING LTD,3162439,42058,47355,35.35,0,Langstone House 360 Ltr wheelie bin,Environmental Services,180000
South Lakeland District Council,http://opendatacommunities.org/id/district-council/south-lakeland,28/02/2015,Social Enterprise Admin,Cultural Environmental Regulatory & Planning Services,http://opendatacommunities.org/def/concept/finance/sercop/objective/104,NEWSQUEST (NORTH WEST) LTD,3102566,42058,47359,185,0,PUBLIC NOTICES FOR PLANNIG DEPARTMENT.,Facilities & Management Services,190000
South Lakeland District Council,http://opendatacommunities.org/id/district-council/south-lakeland,28/02/2015,Revenues and Benefits,Central Services,http://opendatacommunities.org/def/concept/finance/sercop/objective/102,LOOMIS UK LTD,3200432,42060,47360,101.53,0,2014 - 2015,Mail Services,300000
South Lakeland District Council,http://opendatacommunities.org/id/district-council/south-lakeland,28/02/2015,Revenues and Benefits,Highways & Transport Services,http://opendatacommunities.org/def/concept/finance/sercop/objective/107,LOOMIS UK LTD,3200432,42060,47360,914.6,0,2014 - 2015,Consultancy,150000
South Lakeland District Council,http://opendatacommunities.org/id/district-council/south-lakeland,28/02/2015,Revenues and Benefits,Central Services,http://opendatacommunities.org/def/concept/finance/sercop/objective/102,ROYAL MAIL GROUP PLC,,42058,47361,48.05,0,2014-15  Postal Charges a/c 0055114000,Mail Services,300000
South Lakeland District Council,http://opendatacommunities.org/id/district-council/south-lakeland,28/02/2015,Social Enterprise Admin,Cultural Environmental Regulatory & Planning Services,http://opendatacommunities.org/def/concept/finance/sercop/objective/104,FURNESS NEWSPAPERS LTD,1155841,42058,47362,176.31,0,PUBLIC NOTICES FURNESS NEWSPAPERS,Facilities & Management Services,190000
South Lakeland District Council,http://opendatacommunities.org/id/district-council/south-lakeland,28/02/2015,Coronation Hall,Cultural Environmental Regulatory & Planning Services,http://opendatacommunities.org/def/concept/finance/sercop/objective/104,YPO,,42060,47364,97.18,0,Taski Sprint - hard surface cleaner 5,Cleaning & Janitorial,130000
South Lakeland District Council,http://opendatacommunities.org/id/district-council/south-lakeland,28/02/2015,Business Support Community Services,Housing Services,http://opendatacommunities.org/def/concept/finance/sercop/objective/108,Landlord,,42058,47366,500,0,Monthly rent ,Social Community Care Supplies & Services,410000
South Lakeland District Council,http://opendatacommunities.org/id/district-council/south-lakeland,28/02/2015,Business Support Community Services,Housing Services,http://opendatacommunities.org/def/concept/finance/sercop/objective/108,Landlord,,42058,47367,625,0,Monthly rent ,Social Community Care Supplies & Services,410000
South Lakeland District Council,http://opendatacommunities.org/id/district-council/south-lakeland,28/02/2015,Business Support Community Services,Housing Services,http://opendatacommunities.org/def/concept/finance/sercop/objective/108,Landlord,7803122,42058,47368,500,0,Monthly rent ,Social Community Care Supplies & Services,410000
South Lakeland District Council,http://opendatacommunities.org/id/district-council/south-lakeland,28/02/2015,Business Support Community Services,Housing Services,http://opendatacommunities.org/def/concept/finance/sercop/objective/108,Landlord,,42058,47369,91,0,Insurance increase ,Social Community Care Supplies & Services,410000
South Lakeland District Council,http://opendatacommunities.org/id/district-council/south-lakeland,28/02/2015,Business Support Community Services,Housing Services,http://opendatacommunities.org/def/concept/finance/sercop/objective/108,Jackson Properties (Lake District) Ltd,,42058,47370,520,0,Monthly rent ,Social Community Care Supplies & Services,410000
South Lakeland District Council,http://opendatacommunities.org/id/district-council/south-lakeland,28/02/2015,Democratic Services,Central Services,http://opendatacommunities.org/def/concept/finance/sercop/objective/102,GATES TRAVEL SERVICE,,42058,47371,126,0,Train tickets and hotel for Modern.Gov,Education,170000
South Lakeland District Council,http://opendatacommunities.org/id/district-council/south-lakeland,28/02/2015,Environmental Protection,Cultural Environmental Regulatory & Planning Services,http://opendatacommunities.org/def/concept/finance/sercop/objective/104,PARKIN & JACKSON LTD,8282892,42058,47372,420,0,Refix headstones on 544 C & 552,Horticultural,240000
South Lakeland District Council,http://opendatacommunities.org/id/district-council/south-lakeland,28/02/2015,Environmental Protection,Cultural Environmental Regulatory & Planning Services,http://opendatacommunities.org/def/concept/finance/sercop/objective/104,PARKIN & JACKSON LTD,8282892,42058,47373,360,0,"Refix 1012 , 1061",Horticultural,240000
South Lakeland District Council,http://opendatacommunities.org/id/district-council/south-lakeland,28/02/2015,Revenues and Benefits,Central Services,http://opendatacommunities.org/def/concept/finance/sercop/objective/102,MERITEC LTD,3224622,42058,47377,418.5,0,RAB Processing Contract and Agency,Consultancy,150000
South Lakeland District Council,http://opendatacommunities.org/id/district-council/south-lakeland,28/02/2015,Revenues and Benefits,Central Services,http://opendatacommunities.org/def/concept/finance/sercop/objective/102,TAMESIDE METROPOLITAN BOROUGH,,42058,47378,201.12,0,2014-15  NAFN credit and other,Financial Services,200000
South Lakeland District Council,http://opendatacommunities.org/id/district-council/south-lakeland,28/02/2015,Revenues and Benefits,SLDC as Agent,,ROYAL MAIL GROUP PLC,,42058,47379,1700.98,0,2014-15  Postal Charges a/c 0198123013,Financial Services,200000
South Lakeland District Council,http://opendatacommunities.org/id/district-council/south-lakeland,28/02/2015,Social Enterprise Admin,Cultural Environmental Regulatory & Planning Services,http://opendatacommunities.org/def/concept/finance/sercop/objective/104,Westmorland Music Council,,42058,47383,325.32,0,Insurance for the piano.,Financial Services,200000
South Lakeland District Council,http://opendatacommunities.org/id/district-council/south-lakeland,28/02/2015,Business Support Community Services,Internal Trading Accounts,,A & W COMMERCIALS LTD,2630625,42060,47384,65.85,0,QR fittings,Vehicle Management,380000
South Lakeland District Council,http://opendatacommunities.org/id/district-council/south-lakeland,28/02/2015,Coronation Hall,External Trading Accounts,,Morson International,,42058,47386,119.28,0,Ulverston Market Hall cleaner from April,Consultancy,150000
South Lakeland District Council,http://opendatacommunities.org/id/district-council/south-lakeland,28/02/2015,Business Support Community Services,Housing Services,http://opendatacommunities.org/def/concept/finance/sercop/objective/108,ADECCO UK LIMITED,593232,42060,47387,102.7,0,Cleaner for Town View Fields,Consultancy,150000
South Lakeland District Council,http://opendatacommunities.org/id/district-council/south-lakeland,28/02/2015,Business Support Community Services,Housing Services,http://opendatacommunities.org/def/concept/finance/sercop/objective/108,ADECCO UK LIMITED,593232,42060,47388,102.7,0,Cleaner for Town View Fields,Consultancy,150000
South Lakeland District Council,http://opendatacommunities.org/id/district-council/south-lakeland,28/02/2015,Legal Services,Cultural Environmental Regulatory & Planning Services,http://opendatacommunities.org/def/concept/finance/sercop/objective/104,HYGIENE CLEANING SUPPLIES LTD,4753934,42058,47390,2.32,0,"T623W 5 x 17"" White Floor Pads",Cleaning & Janitorial,130000
South Lakeland District Council,http://opendatacommunities.org/id/district-council/south-lakeland,28/02/2015,Social Enterprise Admin,Cultural Environmental Regulatory & Planning Services,http://opendatacommunities.org/def/concept/finance/sercop/objective/104,RTPI SUBSCRIPTIONS,,42058,47392,53.17,0,Subs,Financial Services,200000
South Lakeland District Council,http://opendatacommunities.org/id/district-council/south-lakeland,28/02/2015,Business Support Community Services,Internal Trading Accounts,,M G D LTD,,42058,47393,35,0,MOTs 01/04/14 - 31/03/15,Vehicle Management,380000
South Lakeland District Council,http://opendatacommunities.org/id/district-council/south-lakeland,28/02/2015,Business Support Community Services,Internal Trading Accounts,,LAKELAND TRUCKS LTD,2464423,42058,47394,228.75,0,Repair AdBlue fault,Vehicle Management,380000
South Lakeland District Council,http://opendatacommunities.org/id/district-council/south-lakeland,28/02/2015,Business Support Community Services,Internal Trading Accounts,,TEAL PATENTS LTD,3212208,42058,47395,222.3,0,Handwash unit,Vehicle Management,380000
South Lakeland District Council,http://opendatacommunities.org/id/district-council/south-lakeland,28/02/2015,Business Support Community Services,Internal Trading Accounts,,EK MOTOR FACTORS LTD,838524,42058,47396,24.96,0,Brake pads,Vehicle Management,380000
South Lakeland District Council,http://opendatacommunities.org/id/district-council/south-lakeland,28/02/2015,Revenues and Benefits,Central Services,http://opendatacommunities.org/def/concept/finance/sercop/objective/102,BADENOCH & CLARK,1356186,42058,47403,540.07,0,Revs and Bens,Consultancy,150000
South Lakeland District Council,http://opendatacommunities.org/id/district-council/south-lakeland,28/02/2015,Environment and Housing,Housing,http://opendatacommunities.org/def/concept/finance/sercop/objective/108,VINCENT HOLLERAN PLUMBING & HEATING,,42058,47404,4250,0,"Kendal, LA9 5EW",Financial Services,200000
South Lakeland District Council,http://opendatacommunities.org/id/district-council/south-lakeland,28/02/2015,Environment and Housing,Housing,http://opendatacommunities.org/def/concept/finance/sercop/objective/108,C W COX & SONS (KENDAL) LTD,3498844,42058,47405,3729.9,0,"Ackenthwaite,",Financial Services,200000
South Lakeland District Council,http://opendatacommunities.org/id/district-council/south-lakeland,28/02/2015,Environment and Housing,Housing Services,http://opendatacommunities.org/def/concept/finance/sercop/objective/108,GROWING CONCERNS LANDSCAPING,,42058,47406,1045.2,0,Payment for Handy Person Scheme,"Works - Construction, Repair & Maintenance",390000
South Lakeland District Council,http://opendatacommunities.org/id/district-council/south-lakeland,28/02/2015,Business Support Community Services,Cultural Environmental Regulatory & Planning Services,http://opendatacommunities.org/def/concept/finance/sercop/objective/104,MILNTHORPE KENNELS & CATTERY,8932302,42060,47408,207.31,0,Vets Fees,Healthcare,310000
South Lakeland District Council,http://opendatacommunities.org/id/district-council/south-lakeland,28/02/2015,Business Support Community Services,Cultural Environmental Regulatory & Planning Services,http://opendatacommunities.org/def/concept/finance/sercop/objective/104,MILNTHORPE KENNELS & CATTERY,8932302,42060,47409,2382.33,0,Stray dog kennelling fees April 20014 -,Environmental Services,180000
South Lakeland District Council,http://opendatacommunities.org/id/district-council/south-lakeland,28/02/2015,Lake Wardens,Cultural Environmental Regulatory & Planning Services,http://opendatacommunities.org/def/concept/finance/sercop/objective/104,MARINE WAREHOUSE LIMITED,5152483,42060,47411,140.79,0,Annual Service of 12 Staff Lifejackets,Clothing,140000
South Lakeland District Council,http://opendatacommunities.org/id/district-council/south-lakeland,28/02/2015,Democratic Services,Central Services,http://opendatacommunities.org/def/concept/finance/sercop/objective/102,IMPROVEMENT & DEVELOPMENT AGENCY,3675577,42060,47413,85,0,Pre-night accommodation 11th Feb 2015,Education,170000
South Lakeland District Council,http://opendatacommunities.org/id/district-council/south-lakeland,28/02/2015,Revenues and Benefits,Central Services,http://opendatacommunities.org/def/concept/finance/sercop/objective/102,VENN GROUP RECRUITMENT SOLUTIONS,,42060,47414,869.5,0,Recruitment,Consultancy,150000
South Lakeland District Council,http://opendatacommunities.org/id/district-council/south-lakeland,28/02/2015,Electoral Services,Central Services,http://opendatacommunities.org/def/concept/finance/sercop/objective/102,ROYAL MAIL GROUP PLC,,42060,47418,78.87,0,Response Plus Postage Returns,Mail Services,300000
South Lakeland District Council,http://opendatacommunities.org/id/district-council/south-lakeland,28/02/2015,Electoral Services,Central Services,http://opendatacommunities.org/def/concept/finance/sercop/objective/102,ROYAL MAIL GROUP PLC,,42060,47419,243,0,IER Week 8 Mailing Postage,Mail Services,300000
South Lakeland District Council,http://opendatacommunities.org/id/district-council/south-lakeland,28/02/2015,Business Support Community Services,Internal Trading Accounts,,RIBBLESDALE AUTO ELECTRICS 1992 LTD,2732686,42060,47420,84.3,0,Lamps,Vehicle Management,380000
South Lakeland District Council,http://opendatacommunities.org/id/district-council/south-lakeland,28/02/2015,Business Support Community Services,Internal Trading Accounts,,CUMBRIA TRUCK CENTRE LTD,4298488,42060,47421,18.95,0,Lens,Vehicle Management,380000
South Lakeland District Council,http://opendatacommunities.org/id/district-council/south-lakeland,28/02/2015,Business Support Community Services,Internal Trading Accounts,,CUMBRIA TRUCK CENTRE LTD,4298488,42060,47422,12.39,0,Lens,Vehicle Management,380000
South Lakeland District Council,http://opendatacommunities.org/id/district-council/south-lakeland,28/02/2015,Business Support Community Services,Internal Trading Accounts,,STANHOPE WORKSHOP SERVICES,,42060,47423,170,0,Repair hydraulic oil system,Furniture & Soft Furnishings,210000
South Lakeland District Council,http://opendatacommunities.org/id/district-council/south-lakeland,28/02/2015,Business Support Community Services,Internal Trading Accounts,,CUMBRIA TRUCK CENTRE LTD,4298488,42060,47424,272.15,0,Lens,Vehicle Management,380000
South Lakeland District Council,http://opendatacommunities.org/id/district-council/south-lakeland,28/02/2015,Business Support Community Services,Internal Trading Accounts,,Masterstaff Limited,2777593,42060,47425,480.6,0,Monthly ,Consultancy,150000
South Lakeland District Council,http://opendatacommunities.org/id/district-council/south-lakeland,28/02/2015,Business Support Community Services,Internal Trading Accounts,,ARCO LIMITED,133804,42060,47426,55,0,Polish,Clothing,140000
South Lakeland District Council,http://opendatacommunities.org/id/district-council/south-lakeland,28/02/2015,Business Support Community Services,Central Services,http://opendatacommunities.org/def/concept/finance/sercop/objective/102,GATES TRAVEL SERVICE,,42060,47427,67.6,0,Gambling Commission Training @,Education,170000
South Lakeland District Council,http://opendatacommunities.org/id/district-council/south-lakeland,28/02/2015,Legal Services,Central Services,http://opendatacommunities.org/def/concept/finance/sercop/objective/102,VENN GROUP RECRUITMENT SOLUTIONS,,42060,47429,486.88,0,Wages from: w/k ending,Consultancy,150000
South Lakeland District Council,http://opendatacommunities.org/id/district-council/south-lakeland,28/02/2015,Business Support Community Services,Internal Trading Accounts,,BERENDSEN UK LTD,228604,42060,47431,180.38,0,Workwear hire 29/03/15 - 28/03/16,Clothing,140000
South Lakeland District Council,http://opendatacommunities.org/id/district-council/south-lakeland,28/02/2015,Development Implementation,Planning and Development,,NPS GROUP LTD,6614601,42060,47434,1020,0,Conditions Survey & Asbestos Survey for,Financial Services,200000
South Lakeland District Council,http://opendatacommunities.org/id/district-council/south-lakeland,28/02/2015,Development Implementation,Central Services,http://opendatacommunities.org/def/concept/finance/sercop/objective/102,NPS GROUP LTD,6614601,42060,47435,2450,0,Transparency Code Work,"Works - Construction, Repair & Maintenance",390000
South Lakeland District Council,http://opendatacommunities.org/id/district-council/south-lakeland,28/02/2015,Business Support Community Services,Housing Services,http://opendatacommunities.org/def/concept/finance/sercop/objective/108,Landlord,,42060,47436,500,0,Monthly rent,Social Community Care Supplies & Services,410000
South Lakeland District Council,http://opendatacommunities.org/id/district-council/south-lakeland,28/02/2015,Business Support Community Services,Housing Services,http://opendatacommunities.org/def/concept/finance/sercop/objective/108,Landlord,,42060,47437,625,0,Monthly rent,Social Community Care Supplies & Services,410000
South Lakeland District Council,http://opendatacommunities.org/id/district-council/south-lakeland,28/02/2015,Business Support Community Services,Housing Services,http://opendatacommunities.org/def/concept/finance/sercop/objective/108,Landlord,,42060,47438,410,0,Monthly rent,Social Community Care Supplies & Services,410000
South Lakeland District Council,http://opendatacommunities.org/id/district-council/south-lakeland,28/02/2015,Business Support Community Services,Housing Services,http://opendatacommunities.org/def/concept/finance/sercop/objective/108,Landlord,,42060,47439,500,0,Monthly rent,Social Community Care Supplies & Services,410000
South Lakeland District Council,http://opendatacommunities.org/id/district-council/south-lakeland,28/02/2015,Business Support Community Services,Housing Services,http://opendatacommunities.org/def/concept/finance/sercop/objective/108,Landlord,,42060,47440,500,0,Monthly rent,Social Community Care Supplies & Services,410000
South Lakeland District Council,http://opendatacommunities.org/id/district-council/south-lakeland,28/02/2015,Business Support Community Services,Housing Services,http://opendatacommunities.org/def/concept/finance/sercop/objective/108,Landlord,,42060,47441,625,0,Monthly rent,Social Community Care Supplies & Services,410000
South Lakeland District Council,http://opendatacommunities.org/id/district-council/south-lakeland,28/02/2015,Business Support Community Services,Housing Services,http://opendatacommunities.org/def/concept/finance/sercop/objective/108,Landlord,,42060,47442,500,0,Monthly rent,Social Community Care Supplies & Services,410000
South Lakeland District Council,http://opendatacommunities.org/id/district-council/south-lakeland,28/02/2015,Business Support Community Services,Housing Services,http://opendatacommunities.org/def/concept/finance/sercop/objective/108,Landlord,,42060,47443,475,0,Monthly rent,Social Community Care Supplies & Services,410000
South Lakeland District Council,http://opendatacommunities.org/id/district-council/south-lakeland,28/02/2015,Business Support Community Services,Housing Services,http://opendatacommunities.org/def/concept/finance/sercop/objective/108,Landlord,,42060,47444,480,0,Monthly rent,Social Community Care Supplies & Services,410000
South Lakeland District Council,http://opendatacommunities.org/id/district-council/south-lakeland,28/02/2015,Business Support Community Services,Housing Services,http://opendatacommunities.org/def/concept/finance/sercop/objective/108,Landlord,,42060,47445,400,0,Monthly rent,Social Community Care Supplies & Services,410000
South Lakeland District Council,http://opendatacommunities.org/id/district-council/south-lakeland,28/02/2015,Business Support Community Services,Housing Services,http://opendatacommunities.org/def/concept/finance/sercop/objective/108,Landlord,7009105,42060,47446,480,0,Monthly rent,Social Community Care Supplies & Services,410000
South Lakeland District Council,http://opendatacommunities.org/id/district-council/south-lakeland,28/02/2015,Development Implementation,Cultural Environmental Regulatory & Planning Services,http://opendatacommunities.org/def/concept/finance/sercop/objective/104,AHA! DISTRIBUTION LTD,,42060,47448,1175,0,"Distribute 50,000 Kendalo Sense of Place",Facilities & Management Services,190000
South Lakeland District Council,http://opendatacommunities.org/id/district-council/south-lakeland,28/02/2015,Development Implementation,Cultural Environmental Regulatory & Planning Services,http://opendatacommunities.org/def/concept/finance/sercop/objective/104,KENDAL TOWN COUNCIL,,42060,47449,12000,0,Market Place Improvements Phase 1,Environmental Services,180000
South Lakeland District Council,http://opendatacommunities.org/id/district-council/south-lakeland,28/02/2015,Business Support Community Services,Housing Services,http://opendatacommunities.org/def/concept/finance/sercop/objective/108,Landlord,,42060,47450,520,0,Rent ,Social Community Care Supplies & Services,410000
South Lakeland District Council,http://opendatacommunities.org/id/district-council/south-lakeland,28/02/2015,Social Enterprise Admin,Cultural Environmental Regulatory & Planning Services,http://opendatacommunities.org/def/concept/finance/sercop/objective/104,GRANGE OVER SANDS TOWN COUNCIL,,42060,47451,41854.94,0,2013/14 running costs of Victoria Hall,Financial Services,200000
South Lakeland District Council,http://opendatacommunities.org/id/district-council/south-lakeland,28/02/2015,Financial Services,Central Services,http://opendatacommunities.org/def/concept/finance/sercop/objective/102,CAPITA BUSINESS SERVICES LTD (NCR),,42062,47464,792.75,0,Internet transactions January 2015 In.,Financial Services,200000
South Lakeland District Council,http://opendatacommunities.org/id/district-council/south-lakeland,28/02/2015,Business Support Community Services,Cultural Environmental Regulatory & Planning Services,http://opendatacommunities.org/def/concept/finance/sercop/objective/104,ALLSTAR BUSINESS SOLUTIONS LTD (NCR),2631112,42062,47484,35.33,0,Fuel - 19 January 2015 - Private Water,Environmental Services,180000
